Workbook

Sheet 2016
B2: INDICADORES MENSUALES 2016 DIRERCCION JURIDICA CONTENCIOSA | D2: ENE | E2: FEB | F2: MAR | G2: ABR | H2: MAY | I2: JUN | J2: JUL | K2: AGO | L2: SEP | M2: OCT | N2: NOV | O2: DIC | P2: TOTAL | Q2: PROMEDIO
A3: 2.1 | B3: Área de Amparos y Agrario.
B4: Juicios de Amparo
B5: 2.1.1.1 | C5: Registro Anterior | D5: 482 | E5: =D13 -> 488 | F5: 567 | G5: 660 | H5: 712 | I5: 716 | J5: 684 | K5: 699 | L5: =K13 -> 683 | M5: =L13 -> 660 | N5: =M13 -> 666 | O5: =N13 -> 658 | P5: =SUM(D5:O5) -> 7675 | Q5: =P5/12 -> 639.5833333
B6: 2.1.1.2 | C6: Abiertos en el Mes | D6: 98 | E6: 85 | F6: 102 | G6: 76 | H6: 51 | I6: 39 | J6: 41 | K6: 31 | L6: 24 | M6: 31 | N6: 27 | O6: 31 | P6: =SUM(D6:O6) -> 636 | Q6: 53
B7: 2.1.1.3 | C7: Iniciales en | D7: =D5+D6 -> 580 | E7: 573 | F7: 669 | G7: 736 | H7: 763 | I7: 755 | J7: 725 | K7: 730 | L7: 707 | M7: 691 | N7: 693 | O7: 689 | P7: 8311 | Q7: 692.5833333
B8: 2.1.1.4 | C8: Resueltos y concluidos | D8: 92 | E8: 6 | F8: 9 | G8: 24 | H8: 47 | I8: 71 | J8: 26 | K8: 47 | L8: 47 | M8: 25 | N8: 35 | O8: 14 | P8: 443 | Q8: 36.91666667
C9: Sobreseimiento o Negativa de Amparo | D9: 61 | E9: 5 | F9: 6 | G9: 19 | H9: 24 | I9: 50 | J9: 12 | K9: 31 | L9: 24 | M9: 12 | N9: 22 | O9: 10 | P9: 276 | Q9: 23
C10: Concediendo el amparo | D10: 16 | E10: 0 | F10: 1 | G10: 1 | H10: 0 | I10: 8 | J10: 11 | K10: 5 | L10: 2 | M10: 4 | N10: 4 | O10: 2 | P10: 54 | Q10: 4.5
C11: Sobreseimiento y concede Amparo | D11: 9 | E11: 1 | F11: 2 | G11: 3 | H11: 12 | I11: 13 | J11: 3 | K11: 10 | L11: 7 | M11: 1 | N11: 0 | O11: 1 | P11: 62 | Q11: 5.166666667
C12: Sobresee, no Ampara y Ampara | D12: 6 | E12: 0 | F12: 0 | G12: 1 | H12: 11 | I12: 0 | J12: 0 | K12: 1 | L12: 13 | M12: 8 | N12: 8 | O12: 1 | P12: 49 | Q12: 4.083333333
B13: 2.1.1.5 | C13: En trámite | D13: =D7-D8 -> 488 | E13: 567 | F13: 660 | G13: 712 | H13: 716 | I13: 684 | J13: 699 | K13: 683 | L13: 660 | M13: 666 | N13: 658 | O13: 675 | P13: 7868 | Q13: 655.6666667
B14: 2.1.4 Audiencias y diligencias en Juicios. | D14: 98 | E14: 80 | F14: 30 | G14: 25 | H14: 25 | I14: 20 | J14: 30 | K14: 25 | L14: 30 | M14: 30 | N14: 30 | O14: 25 | P14: 448 | Q14: 37.33333333
B15: 2.1.5 Asesorías y Reuniones. | D15: 50 | E15: 30 | F15: 20 | G15: 15 | H15: 15 | I15: 20 | J15: 30 | K15: 25 | L15: 30 | M15: 30 | N15: 30 | O15: 25 | P15: 320 | Q15: 26.66666667
B16: 2.1.6 Oficios.
B17: 2.1.6.1 | C17: Recibidos en el Área | D17: 924 | E17: 799 | F17: 896 | G17: 1115 | H17: 981 | I17: 1031 | J17: 720 | K17: 779 | L17: 554 | M17: 691 | N17: 548 | O17: 436 | P17: =SUM(D17:O17) -> 9474 | Q17: =P17/12 -> 789.5
B18: 2.1.6.2 | C18: Generados por el Área | D18: 648 | E18: 586 | F18: 702 | G18: 802 | H18: 782 | I18: 774 | J18: 684 | K18: 680 | L18: 548 | M18: 646 | N18: 464 | O18: 339 | P18: =SUM(D18:O18) -> 7655 | Q18: =P18/12 -> 637.9166667
B19: Juicios Agrarios
B20: 2.1.2.1 | C20: Registro Anterior | D20: 75 | E20: =D26 -> 75 | F20: 75 | G20: 75 | H20: 75 | I20: 75 | J20: 72 | K20: 70 | L20: =K26 -> 70 | M20: =L26 -> 70 | N20: =M26 -> 70 | O20: =N26 -> 68 | P20: =SUM(D20:O20) -> 870 | Q20: =P20/12 -> 72.5
B21: 2.1.2.2 | C21: Abiertos en el Mes | D21: 0 | E21: 0 | F21: 0 | G21: 0 | H21: 0 | I21: 0 | J21: 0 | K21: 0 | L21: 0 | M21: 0 | N21: 0 | O21: 0 | P21: 0 | Q21: 0
B22: 2.1.2.3 | C22: Iniciales en | D22: =D20+D21 -> 75 | E22: 75 | F22: 75 | G22: 75 | H22: 75 | I22: 75 | J22: 72 | K22: 70 | L22: 70 | M22: 70 | N22: 70 | O22: 68 | P22: 870 | Q22: 72.5
B23: 2.1.2.4 | C23: Resueltos y concluidos | D23: 0 | E23: 0 | F23: 0 | G23: 0 | H23: 0 | I23: 3 | J23: 2 | K23: 0 | L23: 0 | M23: 0 | N23: 2 | O23: 0 | P23: 7 | Q23: 0.5833333333
C24: Favorables | D24: 0 | E24: 0 | F24: 0 | G24: 0 | H24: 0 | I24: 3 | J24: 2 | K24: 0 | L24: 0 | M24: 0 | N24: 2 | O24: 0 | P24: 7 | Q24: 0.5833333333
C25: Desfavorables | D25: 0 | E25: 0 | F25: 0 | G25: 0 | H25: 0 | I25: 0 | J25: 0 | K25: 0 | L25: 0 | M25: 0 | N25: 0 | O25: 0 | P25: 0 | Q25: 0
B26: 2.1.2.5 | C26: En trámite | D26: =D22-D23 -> 75 | E26: 75 | F26: 75 | G26: 75 | H26: 75 | I26: 72 | J26: 70 | K26: 70 | L26: 70 | M26: 70 | N26: 68 | O26: 68 | P26: 863 | Q26: 71.91666667
B27: 2.1.4 Audiencias y diligencias en Juicios. | D27: 4 | E27: 5 | F27: 4 | G27: 6 | H27: 3 | I27: 4 | J27: 2 | K27: 7 | L27: 1 | M27: 0 | N27: 3 | O27: 1 | P27: 40 | Q27: 3.333333333
B28: 2.1.5 Asesorías y Reuniones. | D28: 2 | E28: 5 | F28: 0 | G28: 8 | H28: 6 | I28: 8 | J28: 4 | K28: 5 | L28: 6 | M28: 0 | N28: 11 | O28: 9 | P28: 64 | Q28: 5.333333333
B29: 2.1.6 Oficios.
B30: 2.1.6.1 | C30: Recibidos en el Área | D30: 13 | E30: 42 | F30: 46 | G30: 25 | H30: 28 | I30: 26 | J30: 25 | K30: 17 | L30: 20 | M30: 0 | N30: 12 | O30: 7 | P30: =SUM(D30:O30) -> 261 | Q30: =P30/12 -> 21.75
B31: 2.1.6.2 | C31: Generados por el Área | D31: 13 | E31: 30 | F31: 46 | G31: 25 | H31: 28 | I31: 26 | J31: 12 | K31: 31 | L31: 37 | M31: 0 | N31: 14 | O31: 5 | P31: =SUM(D31:O31) -> 267 | Q31: =P31/12 -> 22.25
A34: 2.2 | B34: Área de Juicios Administrativos
B35: Juicios de Nulidad
B36: 2.2.1.1 | C36: Registro Anterior | D36: 1418 | E36: =D43 -> 1473 | F36: 1523 | G36: 1586 | H36: 1666 | I36: 1704 | J36: 1783 | K36: 1809 | L36: =K43 -> 1917 | M36: =L43 -> 2000 | N36: =M43 -> 2031 | O36: =N43 -> 2065 | P36: =SUM(D36:O36) -> 20975 | Q36: =P36/12 -> 1747.916667
B37: 2.2.1.2 | C37: Abiertos en el Mes | D37: 61 | E37: 61 | F37: 66 | G37: 86 | H37: 39 | I37: 92 | J37: 27 | K37: 109 | L37: 91 | M37: 55 | N37: 84 | O37: 34 | P37: 805 | Q37: 67.08333333
B38: 2.2.1.3 | C38: Iniciales en | D38: =D36+D37 -> 1479 | E38: 1534 | F38: 1589 | G38: 1672 | H38: 1705 | I38: 1796 | J38: 1810 | K38: 1918 | L38: 2008 | M38: 2055 | N38: 2115 | O38: 2099 | P38: 21780 | Q38: 1815
B39: 2.2.1.4 | C39: Resueltos y concluidos | D39: 6 | E39: 11 | F39: 3 | G39: 6 | H39: 1 | I39: 13 | J39: 1 | K39: 1 | L39: 8 | M39: 24 | N39: 50 | O39: 4 | P39: 128 | Q39: 10.66666667
C40: Favorables | D40: 3 | E40: 9 | F40: 1 | G40: 4 | H40: 0 | I40: 2 | J40: 1 | K40: 0 | L40: 6 | M40: 8 | N40: 19 | O40: 2 | P40: 55 | Q40: 4.583333333
C41: Desfavorables | D41: 3 | E41: 2 | F41: 2 | G41: 2 | H41: 1 | I41: 11 | J41: 0 | K41: 1 | L41: 2 | M41: 16 | N41: 31 | O41: 2 | P41: 73
C42: Turnadas a Despacho Externo | D42: 0 | E42: 0 | F42: 0 | G42: 0 | H42: 0 | I42: 0 | J42: 0 | K42: 0 | L42: 0 | M42: 0 | N42: 0 | O42: 0 | P42: =SUM(I42:O42) -> 0 | Q42: =P42/12 -> 0
B43: 2.2.1.5 | C43: En trámite | D43: =D38-D39 -> 1473 | E43: 1523 | F43: 1586 | G43: 1666 | H43: 1704 | I43: 1783 | J43: 1809 | K43: 1917 | L43: 2000 | M43: 2031 | N43: 2065 | O43: 2095
B44: 2.2.5 Audiencias y diligencias en Juicios | D44: 10 | E44: 15 | F44: 9 | G44: 10 | H44: 16 | I44: 23 | J44: 6 | K44: 4 | L44: 6 | M44: 9 | N44: 12 | O44: 6 | P44: 126 | Q44: 10.5
B45: 2.2.6 Asesorías y Reuniones. | D45: 10 | E45: 0 | F45: 0 | G45: 13 | H45: 10 | I45: 32 | J45: 20 | K45: 13 | L45: 15 | M45: 13 | N45: 22 | O45: 4 | P45: 152 | Q45: 12.66666667
B46: 2.2.7 Oficios.
B47: 2.2.7.1 | C47: Recibidos en el Área | D47: 46 | E47: 89 | F47: 55 | G47: 69 | H47: 40 | I47: 169 | J47: 52 | K47: 22 | L47: 22 | M47: 78 | N47: 55 | O47: 21 | P47: =SUM(D47:O47) -> 718 | Q47: =P47/12 -> 59.83333333
B48: 2.2.7.2 | C48: Generados por el Área | D48: 215 | E48: 179 | F48: 341 | G48: 260 | H48: 149 | I48: 383 | J48: 122 | K48: 264 | L48: 166 | M48: 309 | N48: 370 | O48: 162 | P48: =SUM(D48:O48) -> 2920 | Q48: =P48/12 -> 243.3333333
B49: Juicios de Lesividad
B50: 2.2.2.1 | C50: Registro Anterior | D50: 23 | E50: =D57 -> 22 | F50: 22 | G50: 23 | H50: 22 | I50: 22 | J50: 22 | K50: 22 | L50: =K57 -> 22 | M50: =L57 -> 22 | N50: =M57 -> 18 | O50: =N57 -> 18 | P50: =SUM(D50:O50) -> 258 | Q50: =P50/12 -> 21.5
B51: 2.2.2.2 | C51: Abiertos en el Mes | D51: 0 | E51: 0 | F51: 1 | G51: 0 | H51: 0 | I51: 0 | J51: 0 | K51: 1 | L51: 0 | M51: 0 | N51: 0 | O51: 0 | P51: 2 | Q51: 0.1666666667
B52: 2.2.2.3 | C52: Sub-total | D52: =D50+D51 -> 23 | E52: 22 | F52: 23 | G52: 23 | H52: 22 | I52: 22 | J52: 22 | K52: 23 | L52: 22 | M52: 22 | N52: 18 | O52: 18 | P52: 260 | Q52: 21.66666667
B53: 2.2.2.4 | C53: Resueltos y concluidos | D53: 1 | E53: 0 | F53: 0 | G53: 1 | H53: 0 | I53: 0 | J53: 0 | K53: 1 | L53: 0 | M53: 4 | N53: 0 | O53: 0 | P53: 7 | Q53: 0.5833333333
C54: Se declara la Nulidad del acto | D54: 0 | E54: 0 | F54: 0 | G54: 1 | H54: 0 | I54: 0 | J54: 0 | K54: 1 | L54: 0 | M54: 3 | N54: 0 | O54: 0 | P54: 5 | Q54: 0.4166666667
C55: Desist.de la accion y validez del acto (Fav.al Part.) | D55: 1 | E55: 0 | F55: 0 | G55: 0 | H55: 0 | I55: 0 | J55: 0 | K55: 0 | L55: 0 | M55: 1 | N55: 0 | O55: 0 | P55: 2 | Q55: 0.1666666667
C56: Defensa Legal en otras Dependencias | D56: 0 | E56: 0 | F56: 0 | G56: 0 | H56: 0 | I56: 0 | J56: 0 | K56: 0 | L56: 0 | M56: 0 | N56: 0 | O56: 0 | P56: 0 | Q56: 0
B57: 2.2.2.5 | C57: En trámite | D57: =D52-D53 -> 22 | E57: 22 | F57: 23 | G57: 22 | H57: 22 | I57: 22 | J57: 22 | K57: 22 | L57: 22 | M57: 18 | N57: 18 | O57: 18
A58: 2.3 | B58: Área de Procedimientos Administrativos
B59: Responsabilidad Laboral
B60: 2.3.1.1 | C60: Registro Anterior | D60: 3 | E60: =D66 -> 6 | F60: 7 | G60: 11 | H60: 14 | I60: 15 | J60: 14 | K60: 17 | L60: =K66 -> 17 | M60: =L66 -> 18 | N60: =M66 -> 15 | O60: =N66 -> 15 | P60: =SUM(D60:O60) -> 152 | Q60: =AVERAGE(D60:O60) -> 12.66666667
B61: 2.3.1.2 | C61: Abiertos en el Mes | D61: 3 | E61: 4 | F61: 6 | G61: 5 | H61: 5 | I61: 2 | J61: 3 | K61: 2 | L61: 5 | M61: 2 | N61: 2 | O61: 0 | P61: 39 | Q61: =AVERAGE(D61:O61) -> 3.25
B62: 2.3.1.3 | C62: Iniciales en | D62: =D60+D61 -> 6 | E62: 10 | F62: 13 | G62: 16 | H62: 19 | I62: 17 | J62: =J60+J61 -> 17 | K62: =K60+K61 -> 19 | L62: =L60+L61 -> 22 | M62: 20 | N62: 17 | O62: 15 | P62: 191 | Q62: =P63/P61 -> 0.7435897436
B63: 2.3.1.4 | C63: Resueltos y concluidos | D63: 0 | E63: 3 | F63: 2 | G63: 2 | H63: 4 | I63: 3 | J63: 0 | K63: 2 | L63: 4 | M63: 5 | N63: 2 | O63: 2 | P63: 29 | Q63: =AVERAGE(D63:O63) -> 2.416666667
C64: con sanción | D64: 0 | E64: 2 | F64: 1 | G64: 0 | H64: 1 | I64: 0 | J64: 0 | K64: 0 | L64: 2 | M64: 3 | N64: 0 | O64: 1 | P64: 10 | Q64: =AVERAGE(D64:O64) -> 0.8333333333
C65: sin sanción | D65: 0 | E65: 1 | F65: 1 | G65: 2 | H65: 3 | I65: 3 | J65: 0 | K65: 2 | L65: 2 | M65: 2 | N65: 2 | O65: 1 | P65: 19 | Q65: =AVERAGE(D65:O65) -> 1.583333333
B66: 2.3.1.5 | C66: En trámite | D66: =D62-D63 -> 6 | E66: 7 | F66: 11 | G66: 14 | H66: 15 | I66: 14 | J66: 17 | K66: 17 | L66: 18 | M66: 15 | N66: 15 | O66: 13 | P66: =SUM(D66:O66) -> 162
B67: 2.3.6 Audiencias y Diligencias | D67: 3 | E67: 3 | F67: 3 | G67: 7 | H67: 12 | I67: 9 | J67: 6 | K67: 7 | L67: 3 | M67: 8 | N67: 4 | O67: 3 | P67: =SUM(D67:O67) -> 68 | Q67: =AVERAGE(D67:O67) -> 5.666666667
B68: 2.3.7 Asesorías y Reuniones. | D68: 10 | E68: 17 | F68: 7 | G68: 9 | H68: 11 | I68: 7 | J68: 11 | K68: 11 | L68: 18 | M68: 14 | N68: 10 | O68: 10 | P68: =SUM(D68:O68) -> 135 | Q68: =AVERAGE(D68:O68) -> 11.25
B69: 2.3.8 Oficios.
B70: 2.3.8.1 | C70: Recibidos en el Área | E70: 13 | F70: 10 | G70: 8 | H70: 6 | I70: 3 | J70: 8 | K70: 13 | L70: 6 | M70: 9 | N70: 8 | O70: 4 | P70: =SUM(D70:O70) -> 88 | Q70: =AVERAGE(D70:O70) -> 8
B71: 2.3.8.2 | C71: Generados por el Área | D71: 23 | E71: 36 | F71: 35 | G71: 40 | H71: 18 | I71: 26 | J71: 18 | K71: 27 | L71: 28 | M71: 5 | N71: 38 | O71: 10 | P71: =SUM(D71:O71) -> 304 | Q71: =AVERAGE(D71:O71) -> 25.33333333
B72: Organo de Dontrol Disciplinario (OCD)
B73: 2.3.2.1 | C73: Registro Anterior | D73: 99 | E73: =D80 -> 109 | F73: =E80 -> 122 | G73: =F80 -> 136 | H73: =G80 -> 147 | I73: =H80 -> 145 | J73: =I80 -> 152 | K73: 155 | L73: =K80 -> 158 | M73: =L80 -> 173 | N73: =M80 -> 177 | O73: =N80 -> 173 | P73: =SUM(D73:O73) -> 1746 | Q73: =AVERAGE(D73:O73) -> 145.5
B74: 2.3.2.2 | C74: Abiertos en el Mes | D74: 27 | E74: 19 | F74: 15 | G74: 18 | H74: 11 | I74: 13 | J74: 13 | K74: 13 | L74: 21 | M74: 23 | N74: 13 | O74: 7 | P74: 193 | Q74: =AVERAGE(D74:O74) -> 16.08333333
B75: 2.3.2.3 | C75: Iniciales en | D75: =D73+D74 -> 126 | E75: 128 | F75: 137 | G75: 154 | H75: 158 | I75: 158 | J75: 165 | K75: 168 | L75: 179 | M75: 196 | N75: 190 | O75: 180 | P75: 1939 | Q75: =P76/P74 -> 0.621761658
B76: 2.3.2.4 | C76: Resueltos y concluidos | D76: 17 | E76: 6 | F76: 1 | G76: 7 | H76: 13 | I76: 6 | J76: 10 | K76: 10 | L76: 6 | M76: 19 | N76: 17 | O76: 8 | P76: 120 | Q76: =AVERAGE(D76:O76) -> 10
C77: con sanción | D77: 6 | E77: 5 | F77: 0 | G77: 1 | H77: 5 | I77: 0 | J77: 3 | K77: 3 | L77: 0 | M77: 1 | N77: 1 | O77: 2 | P77: 27 | Q77: =AVERAGE(D77:O77) -> 2.25
C78: sin sanción | D78: 11 | E78: 1 | F78: 1 | G78: 6 | H78: 8 | I78: 6 | J78: 7 | K78: 7 | L78: 6 | M78: 16 | N78: 16 | O78: 5 | P78: 90 | Q78: =AVERAGE(D78:O78) -> 7.5
C79: no se admite (acumulado | D79: 0 | E79: 0 | F79: 0 | G79: 0 | H79: 0 | I79: 0 | J79: 0 | K79: 0 | L79: 0 | M79: 2 | N79: 0 | O79: 1 | P79: 3
B80: 2.4.3.5 | C80: En trámite | D80: =D75-D76 -> 109 | E80: 122 | F80: 136 | G80: 147 | H80: 145 | I80: 152 | J80: 155 | K80: 158 | L80: 173 | M80: 177 | N80: 173 | O80: 172 | P80: 1819
B81: 2.4.6 Audiencias y diligencias en Juicios y Proc | D81: 26 | E81: 34 | F81: 28 | G81: 14 | H81: 11 | I81: 23 | J81: 24 | K81: 21 | L81: 21 | M81: 26 | N81: 18 | O81: 11 | P81: 257 | Q81: =AVERAGE(D81:O81) -> 21.41666667
B82: 2.4.6 Asesorías y Reuniones. | D82: 20 | E82: 28 | F82: 24 | G82: 23 | H82: 20 | I82: 16 | J82: 19 | K82: 24 | L82: 23 | M82: 31 | N82: 6 | O82: 17 | P82: 251 | Q82: =AVERAGE(D82:O82) -> 20.91666667
B83: 2.4.7 Oficios.
B84: 2.4.7.1 | C84: Recibidos en el Área | D84: 73 | E84: 50 | F84: 48 | G84: 55 | H84: 47 | I84: 59 | J84: 69 | K84: 62 | L84: 94 | M84: 75 | N84: 58 | O84: 46 | P84: =SUM(D84:O84) -> 736 | Q84: =AVERAGE(D84:O84) -> 61.33333333
B85: 2.4.7.2 | C85: Generados por el Área | D85: 72 | E85: 113 | F85: 63 | G85: 94 | H85: 57 | I85: 91 | J85: 74 | K85: 80 | L85: 138 | M85: 144 | N85: 88 | O85: 48 | P85: =SUM(D85:O85) -> 1062 | Q85: =AVERAGE(D85:O85) -> 88.5
B86: Recursos
B87: 2.2.2.1 | C87: Registro Anterior | D87: 56 | E87: =D93 -> 54 | F87: 50 | G87: 50 | H87: 54 | I87: 57 | J87: 56 | K87: 43 | L87: =K93 -> 31 | M87: =L93 -> 31 | N87: =M93 -> 34 | O87: =N93 -> 40 | P87: =SUM(D87:O87) -> 556 | Q87: =P87/12 -> 46.33333333
B88: 2.2.2.2 | C88: Abiertos en el Mes | D88: 8 | E88: 7 | F88: 10 | G88: 10 | H88: 10 | I88: 12 | J88: 12 | K88: 5 | L88: 9 | M88: 16 | N88: 11 | O88: 10 | P88: 120 | Q88: 10
B89: 2.2.2.3 | C89: Iniciales en | D89: =D87+D88 -> 64 | E89: 61 | F89: 60 | G89: 60 | H89: 64 | I89: 69 | J89: 68 | K89: 48 | L89: 40 | M89: 47 | N89: 45 | O89: 50 | P89: 676 | Q89: 56.33333333
B90: 2.2.2.4 | C90: Resueltos y concluidos | D90: 10 | E90: 11 | F90: 10 | G90: 6 | H90: 7 | I90: 13 | J90: 25 | K90: 17 | L90: 9 | M90: 13 | N90: 5 | O90: 0 | P90: 126 | Q90: 10.5
C91: Se confirma el acto reclamado | D91: 5 | E91: 9 | G91: 0 | H91: 2 | I91: 7 | J91: 13 | K91: 4 | L91: 5 | M91: 6 | N91: 1 | O91: 0 | P91: 52 | Q91: 4.333333333
C92: Favorables al particular | D92: 5 | E92: 2 | F92: 3 | G92: 6 | H92: 5 | I92: 6 | J92: 12 | K92: 13 | L92: 4 | M92: 7 | N92: 4 | O92: 0 | P92: 67 | Q92: 5.583333333
B93: 2.2.2.5 | C93: En trámite | D93: =D89-D90 -> 54 | E93: 50 | F93: 50 | G93: 54 | H93: 57 | I93: 56 | J93: 43 | K93: 31 | L93: 31 | M93: 34 | N93: 40 | O93: 50 | P93: 550 | Q93: 45.83333333
B94: Revocación de Licencia Municipal
B95: 2.2.3.1 | C95: Registro Anterior | D95: 103 | E95: =D102 -> 106 | F95: 106 | G95: 106 | H95: 107 | I95: 107 | J95: 36 | K95: 39 | L95: =K102 -> 38 | M95: =L102 -> 38 | N95: =M102 -> 36 | O95: =N102 -> 33 | P95: =SUM(D95:O95) -> 855 | Q95: =P95/12 -> 71.25
B96: 2.2.3.2 | C96: Abiertos en el Mes | D96: 3 | E96: 1 | F96: 0 | G96: 1 | H96: 0 | I96: 1 | J96: 3 | K96: 1 | L96: 1 | M96: 0 | N96: 0 | O96: 0 | P96: 11 | Q96: 0.9166666667
B97: 2.2.3.3 | C97: Iniciales en | D97: =D95+D96 -> 106 | E97: 107 | F97: 106 | G97: 107 | H97: 107 | I97: 108 | J97: 39 | K97: 40 | L97: 39 | M97: 38 | N97: 36 | O97: 33 | P97: 866 | Q97: 72.16666667
B98: 2.2.3.4 | C98: Resueltos y concluidos | D98: 0 | E98: 1 | F98: 0 | G98: 0 | H98: 0 | I98: 72 | J98: 0 | K98: 2 | L98: 1 | M98: 2 | N98: 3 | O98: 2 | P98: 83 | Q98: 6.916666667
C99: Procedentes | D99: 0 | E99: 1 | F99: 0 | G99: 0 | H99: 0 | I99: 1 | J99: 0 | K99: 0 | L99: 0 | M99: 0 | N99: 2 | O99: 1 | P99: 5 | Q99: 0.4166666667
C100: Favorables al particular | D100: 0 | E100: 0 | F100: 0 | G100: 0 | H100: 0 | I100: 6 | J100: 0 | K100: 2 | L100: 1 | M100: 0 | N100: 0 | O100: 1 | P100: 10 | Q100: 0.8333333333
C101: Caducidad | M101: 2 | N101: 1 | O101: 0 | P101: 3
B102: 2.2.3.5 | C102: En trámite | D102: =D97-D98 -> 106 | E102: 106 | F102: 106 | G102: 107 | H102: 107 | I102: =I97-I9798-I98 -> 36 | J102: =J97-J9798-J98 -> 39 | K102: =K97-K9798-K98 -> 38 | L102: =L97-L9798-L98 -> 38 | M102: 36 | N102: 33 | O102: 31
B103: 2.3.5 Audiencias y diligencias en Juicios | E103: 0 | F103: 0 | G103: 2 | H103: 1 | I103: 7 | J103: 0 | K103: 3 | L103: 2 | M103: 0 | N103: 0 | O103: 0 | P103: =SUM(D103:O103) -> 15 | Q103: =AVERAGE(D103:O103) -> 1.363636364
B104: 2.3.6 Asesorías y Reuniones. | E104: 15 | F104: 10 | G104: 13 | H104: 30 | I104: 9 | J104: 9 | K104: 8 | L104: 13 | M104: 15 | N104: 9 | O104: 11 | P104: =SUM(D104:O104) -> 142 | Q104: =AVERAGE(D104:O104) -> 12.90909091
B105: 2.3.7 Oficios.
B106: 2.3.7.1 | C106: Recibidos en el Área | E106: 0 | F106: 10 | G106: 11 | H106: 35 | I106: 8 | J106: 11 | K106: 18 | L106: 21 | M106: 25 | N106: 21 | O106: 15 | P106: =SUM(D106:O106) -> 175 | Q106: =AVERAGE(D106:O106) -> 15.90909091
B107: 2.3.7.2 | C107: Generados por el Área | E107: 22 | F107: 29 | G107: 41 | H107: 60 | I107: 62 | J107: 33 | K107: 30 | L107: 27 | M107: 51 | N107: 41 | O107: 33 | P107: =SUM(D107:O107) -> 429 | Q107: =AVERAGE(D107:O107) -> 39
B109: Responsabilidad Patrimonial
B110: 2.2.4.1 | C110: Registro Anterior | D110: 43 | E110: =D117 -> 48 | F110: 48 | G110: 48 | H110: 48 | I110: 40 | J110: 36 | K110: 45 | L110: =K117 -> 56 | M110: =L117 -> 67 | N110: =M117 -> 71 | O110: =N117 -> 79 | P110: =SUM(D110:O110) -> 629 | Q110: =P110/12 -> 52.41666667
B111: 2.2.4.2 | C111: Abiertos en el Mes | D111: 11 | E111: 4 | F111: 7 | G111: 4 | H111: 6 | I111: 8 | J111: 11 | K111: 22 | L111: 17 | M111: 17 | N111: 16 | O111: 4 | P111: 127 | Q111: 10.58333333
B112: 2.2.4.3 | C112: Iniciales en | D112: =D110+D111 -> 54 | E112: 52 | F112: 55 | G112: 52 | H112: 54 | I112: 48 | J112: 47 | K112: 67 | L112: 73 | M112: 84 | N112: 87 | O112: 83 | P112: 756 | Q112: 63
B113: 2.2.4.4 | C113: Resueltos y concluidos | D113: 6 | E113: 4 | F113: 7 | G113: 4 | H113: 14 | I113: 12 | J113: 2 | K113: 11 | L113: 6 | M113: 13 | N113: 8 | O113: 5 | P113: 92 | Q113: 7.666666667
C114: Favorables al particular | D114: 3 | E114: 1 | F114: 3 | G114: 2 | H114: 9 | I114: 5 | J114: 0 | K114: 4 | L114: 1 | M114: 1 | N114: 5 | O114: 2 | P114: 36 | Q114: 3
C115: Favorables al aytto. | D115: 2 | E115: 2 | F115: 1 | G115: 1 | H115: 3 | I115: 6 | J115: 1 | K115: 2 | L115: 4 | M115: 7 | N115: 2 | O115: 1 | P115: 32 | Q115: 2.666666667
C116: Incompetencias | D116: 1 | E116: 1 | F116: 2 | G116: 1 | H116: 2 | I116: 1 | J116: 1 | K116: 5 | L116: 1 | M116: 5 | N116: 1 | O116: 5 | P116: 26 | Q116: 2.166666667
B117: 2.2.4.5 | C117: En trámite | D117: =D112-D113 -> 48 | E117: 48 | F117: 48 | G117: 48 | H117: 40 | I117: 36 | J117: 45 | K117: 56 | L117: 67 | M117: 71 | N117: 79 | O117: 78 | P117: =SUM(D117:O117) -> 664 | Q117: 55.33333333
B118: 2.3.5 Audiencias y diligencias en Juicios | E118: 1 | F118: 1 | G118: 1 | H118: 3 | I118: 0 | J118: 0 | K118: 4 | L118: 0 | M118: 2 | N118: 0 | O118: 1 | P118: =SUM(D118:O118) -> 13 | Q118: =AVERAGE(D118:O118) -> 1.181818182
B119: 2.3.6 Asesorías y Reuniones. | E119: 15 | F119: 7 | G119: 17 | H119: 10 | I119: 7 | J119: 9 | K119: 17 | L119: 37 | M119: 35 | N119: 14 | O119: 14 | P119: =SUM(D119:O119) -> 182 | Q119: =AVERAGE(D119:O119) -> 16.54545455
B120: 2.3.7 Oficios.
B121: 2.3.7.1 | C121: Recibidos en el Área | E121: 17 | F121: 15 | G121: 14 | H121: 14 | I121: 13 | J121: 14 | K121: 26 | L121: 95 | M121: 81 | N121: 108 | O121: 30 | P121: =SUM(D121:O121) -> 427 | Q121: =AVERAGE(D121:O121) -> 38.81818182
B122: 2.3.7.2 | C122: Generados por el Área | E122: 16 | F122: 26 | G122: 16 | H122: 17 | I122: 12 | J122: 12 | K122: 24 | L122: 23 | M122: 41 | N122: 39 | O122: 7 | P122: =SUM(D122:O122) -> 233 | Q122: =AVERAGE(D122:O122) -> 21.18181818
A123: 2.4 | B123: Área de Procedimientos Civiles.
B124: 2.3.1 Juicios Civiles
B125: 2.3.1.1 | C125: Registro Anterior | D125: 323 | E125: =D131 -> 323 | F125: 326 | G125: 328 | H125: 332 | I125: 333 | J125: 334 | K125: 334 | L125: =K131 -> 337 | M125: =L131 -> 338 | N125: =M131 -> 339 | O125: =N131 -> 341 | P125: =SUM(D125:O125) -> 3988 | Q125: =AVERAGE(D125:O125) -> 332.3333333
B126: 2.3.1.2 | C126: Abiertos en el Mes | D126: 0 | E126: 4 | F126: 2 | G126: 4 | H126: 1 | I126: 1 | J126: 0 | K126: 3 | L126: 1 | M126: 1 | N126: 2 | O126: 3 | P126: 22 | Q126: =AVERAGE(D126:O126) -> 1.833333333
B127: 2.3.1.3 | C127: Iniciales en | D127: =D125+D126 -> 323 | E127: 327 | F127: 328 | G127: 332 | H127: 333 | I127: 334 | J127: 334 | K127: 337 | L127: 338 | M127: 339 | N127: 341 | O127: 344 | P127: 4010 | Q127: =P128/P126 -> 0.04545454545
B128: 2.3.1.4 | C128: Resueltos y concluidos | D128: 0 | E128: 1 | F128: 0 | G128: 0 | H128: 0 | I128: 0 | J128: 0 | K128: 0 | L128: 0 | M128: 0 | N128: 0 | O128: 0 | P128: 1 | Q128: =AVERAGE(D128:O128) -> 0.08333333333
C129: Favorables | D129: 0 | E129: 0 | F129: 0 | G129: 0 | H129: 0 | I129: 0 | J129: 0 | K129: 0 | L129: 0 | M129: 0 | N129: 0 | O129: 0 | P129: 0 | Q129: =AVERAGE(D129:O129) -> 0
C130: Desfavorables | D130: 0 | E130: 1 | F130: 0 | G130: 0 | H130: 0 | I130: 0 | J130: 0 | K130: 0 | L130: 0 | M130: 0 | N130: 0 | O130: 0 | P130: 1 | Q130: =AVERAGE(D130:O130) -> 0.08333333333
B131: 2.3.1.5 | C131: En trámite | D131: =D127-D128 -> 323 | E131: 326 | F131: 328 | G131: 332 | H131: 333 | I131: 334 | J131: 334 | K131: 337 | L131: 338 | M131: 339 | N131: 341 | O131: 344 | P131: 4009 | Q131: =AVERAGE(D131:P131) -> 616.7692308
B132: 2.3.4 Instancias.
B133: 2.3.4.1 | C133: Registro Anterior | D133: 11 | E133: =D137 -> 11 | F133: 11 | G133: 11 | H133: 11 | I133: 11 | J133: 11 | K133: =J137 -> 11 | L133: =K137 -> 11 | M133: =L137 -> 11 | N133: =M137 -> 11 | O133: =N137 -> 11 | P133: =SUM(D133:O133) -> 132 | Q133: =AVERAGE(D133:O133) -> 11
B134: 2.3.4.2 | C134: Abiertos en el Mes | D134: 0 | E134: 0 | F134: 0 | G134: 0 | H134: 0 | I134: 0 | J134: 0 | K134: 0 | L134: 0 | M134: 0 | N134: 0 | O134: 0 | P134: 0 | Q134: =AVERAGE(D134:O134) -> 0
B135: 2.3.4.3 | C135: Iniciales en | D135: =D133+D134 -> 11 | E135: 11 | F135: 11 | G135: 11 | H135: 11 | I135: 11 | J135: 11 | K135: 11 | L135: 11 | M135: 11 | N135: 11 | O135: 11 | P135: 132 | Q135: =P136/P134 -> 
B136: 2.3.4.4 | C136: Resueltas y concluidas | D136: 0 | E136: 0 | F136: 0 | G136: 0 | H136: 0 | I136: 0 | J136: 0 | K136: 0 | L136: 0 | M136: 0 | N136: 0 | O136: 0 | P136: 0 | Q136: =AVERAGE(D136:O136) -> 0
B137: 2.3.4.5 | C137: En trámite | D137: =D135-D136 -> 11 | E137: 11 | F137: 11 | G137: 11 | H137: 11 | I137: 11 | J137: 11 | K137: 11 | L137: 11 | M137: 11 | N137: 11 | O137: 11 | P137: 132 | Q137: =AVERAGE(D137:P137) -> 20.30769231
B138: 2.3.5 Audiencias y diligencias en Juicios | D138: 2 | E138: 5 | F138: 2 | G138: 4 | H138: 3 | I138: 2 | J138: 6 | K138: 4 | L138: 3 | M138: 6 | N138: 8 | O138: 3 | P138: 48 | Q138: =AVERAGE(D138:O138) -> 4
B139: 2.3.6 Asesorías y Reuniones. | D139: 11 | E139: 9 | F139: 15 | G139: 8 | H139: 12 | I139: 11 | J139: 14 | K139: 22 | L139: 20 | M139: 4 | N139: 9 | O139: 5 | P139: 140 | Q139: =AVERAGE(D139:O139) -> 11.66666667
B140: 2.3.7 Oficios.
B141: 2.3.7.1 | C141: Recibidos en el Área | D141: 25 | E141: 16 | F141: 8 | G141: 19 | H141: 42 | I141: 20 | J141: 13 | K141: 22 | L141: 17 | M141: 27 | N141: 27 | O141: 28 | P141: =SUM(D141:O141) -> 264 | Q141: =AVERAGE(D141:O141) -> 22
B142: 2.3.7.2 | C142: Generados por el Área | D142: 25 | E142: 16 | F142: 8 | G142: 19 | H142: 42 | I142: 20 | J142: 13 | K142: 22 | L142: 17 | M142: 27 | N142: 27 | O142: 11 | P142: =SUM(D142:O142) -> 247 | Q142: =AVERAGE(D142:O142) -> 20.58333333
A143: 2.5 | B143: Área de Procedimientos Penales
B144: Expedientes Generales (Av. Previas, Juicios, Internos)
B145: 2.5.1.1 | C145: Registro Anterior | D145: 573 | E145: =D149 -> 592 | F145: 606 | G145: 616 | H145: 619 | I145: 626 | J145: 628 | K145: =J149 -> 637 | L145: =K149 -> 646 | M145: =L149 -> 652 | N145: =M149 -> 654 | O145: =N149 -> 663 | P145: =SUM(D145:O145) -> 7512 | Q145: =AVERAGE(D145:O145) -> 626
B146: 2.5.1.2 | C146: Abiertos en el Mes | D146: 19 | E146: 18 | F146: 10 | G146: 11 | H146: 19 | I146: 12 | J146: 15 | K146: 19 | L146: 13 | M146: 9 | N146: 15 | O146: 3 | P146: =SUM(D146:O146) -> 163 | Q146: =AVERAGE(D146:O146) -> 13.58333333
B147: 2.5.1.3 | C147: Iniciales en | D147: =D145+D146 -> 592 | E147: 610 | F147: 616 | G147: 627 | H147: 638 | I147: 638 | J147: 643 | K147: 656 | L147: 659 | M147: 661 | N147: 669 | O147: 666 | P147: =SUM(D147:O147) -> 7675 | Q147: =P148/P146 -> 0.4846625767
B148: 2.5.1.4 | C148: Resueltos y concluidos | D148: 0 | E148: 4 | F148: 0 | G148: 8 | H148: 12 | I148: 10 | J148: 6 | K148: 10 | L148: 7 | M148: 7 | N148: 6 | O148: 9 | P148: =SUM(D148:O148) -> 79 | Q148: =AVERAGE(D148:O148) -> 6.583333333
B149: 2.5.1.5 | C149: En trámite | D149: =D147-D148 -> 592 | E149: 606 | F149: 616 | G149: 619 | H149: 626 | I149: 628 | J149: 637 | K149: 646 | L149: 652 | M149: 654 | N149: 663 | O149: 657 | P149: =SUM(D149:O149) -> 7596 | Q149: =AVERAGE(D149:P149) -> 1168.615385
C150: Favorables | Q150: =AVERAGE(D150:O150) -> 
C151: Archivados | Q151: =AVERAGE(D151:O151) -> 
B153: Expedientes Daños a bienes Propiedad Municipal
B154: 2.5.2.1 | C154: Registro Anterior | D154: 199 | E154: =D158 -> 198 | F154: 198 | G154: 204 | H154: 210 | I154: 207 | J154: 209 | K154: =J158 -> 208 | L154: =K158 -> 219 | M154: =L158 -> 227 | N154: =M158 -> 227 | O154: =N158 -> 221 | P154: =SUM(D154:O154) -> 2527 | Q154: =AVERAGE(D154:O154) -> 210.5833333
B155: 2.5.2.2 | C155: Abiertos en el Mes | D155: 20 | E155: 26 | F155: 21 | G155: 26 | H155: 23 | I155: 21 | J155: 16 | K155: 26 | L155: 27 | M155: 23 | N155: 17 | O155: 6 | P155: 252 | Q155: =AVERAGE(D155:O155) -> 21
B156: 2.5.2.3 | C156: Iniciales en | D156: =D154+D155 -> 219 | E156: 224 | F156: 219 | G156: 230 | H156: 233 | I156: 228 | J156: 225 | K156: 234 | L156: 246 | M156: 250 | N156: 244 | O156: 227 | P156: 2779 | Q156: =P157/P155 -> 0.9642857143
B157: 2.5.2.4 | C157: Resueltos y concluidos | D157: 21 | E157: 26 | F157: 15 | G157: 20 | H157: 26 | I157: 19 | J157: 17 | K157: 15 | L157: 19 | M157: 23 | N157: 23 | O157: 19 | P157: 243 | Q157: =AVERAGE(D157:O157) -> 20.25
B158: 2.5.2.5 | C158: En trámite | D158: =D156-D157 -> 198 | E158: 198 | F158: 204 | G158: 210 | H158: 207 | I158: 209 | J158: 208 | K158: 219 | L158: 227 | M158: 227 | N158: 221 | O158: 208 | P158: 2536 | Q158: =AVERAGE(D158:P158) -> 390.1538462
A159: , | B159: 2.5.2.4 | C159: Dinero Recaudado | D159: 121978.57 | E159: 151027.38 | F159: 41773.82 | G159: 164697.46 | H159: 148450.96 | I159: 45898.42 | J159: 63128 | K159: 70345 | L159: 68323 | M159: 174377 | N159: 123178 | O159: 56652 | P159: 1229829.61 | Q159: =AVERAGE(D159:O159) -> 102485.8008
B160: 2.5.3 Preliberados.
B161: 2.5.3.1 | C161: Registro Anterior | D161: 690 | E161: =D165 -> 681 | F161: 688 | G161: 686 | H161: 691 | I161: 693 | J161: 694 | K161: =J165 -> 690 | L161: =K165 -> 681 | M161: =L165 -> 680 | N161: =M165 -> 675 | O161: =N165 -> 660 | P161: =SUM(D161:O161) -> 8209 | Q161: =AVERAGE(D161:O161) -> 684.0833333
B162: 2.5.3.2 | C162: Abiertos en el Mes | D162: 3 | E162: 7 | F162: 6 | G162: 13 | H162: 12 | I162: 4 | J162: 5 | K162: 2 | L162: 5 | M162: 1 | N162: 5 | O162: 1 | P162: 64 | Q162: =AVERAGE(D162:O162) -> 5.333333333
B163: 2.5.3.3 | C163: Iniciales en | D163: =D161+D162 -> 693 | E163: 688 | F163: 694 | G163: 699 | H163: 703 | I163: 697 | J163: 699 | K163: 692 | L163: 686 | M163: 681 | N163: 680 | O163: 661 | P163: 8273 | Q163: =P164/P162 -> 1.5
B164: 2.5.3.4 | C164: Cumplimentaron | D164: 12 | E164: 0 | F164: 8 | G164: 8 | H164: 10 | I164: 3 | J164: 9 | K164: 11 | L164: 6 | M164: 6 | N164: 20 | O164: 3 | P164: 96 | Q164: =AVERAGE(D164:O164) -> 8
B165: 2.5.3.5 | C165: En seguimiento | D165: =D163-D164 -> 681 | E165: 688 | F165: 686 | G165: 691 | H165: 693 | I165: 694 | J165: 690 | K165: 681 | L165: 680 | M165: 675 | N165: 660 | O165: 658 | P165: 8177 | Q165: =AVERAGE(D165:P165) -> 1258
B166: 2.5.4 Audiencias y Diligencias | D166: 14 | E166: 20 | F166: 0 | G166: 10 | H166: 7 | I166: 10 | J166: 12 | K166: 20 | L166: 16 | M166: 22 | N166: 16 | O166: 10 | P166: 157 | Q166: =AVERAGE(D166:O166) -> 13.08333333
B167: 2.5.5 Asesorías y Reuniones. | D167: 12 | E167: 15 | F167: 5 | G167: 5 | H167: 12 | I167: 14 | J167: 18 | K167: 13 | L167: 15 | M167: 21 | N167: 25 | O167: 12 | P167: 167 | Q167: =AVERAGE(D167:O167) -> 13.91666667
B168: 2.5.6 Oficios.
B169: 2.5.6.1 | C169: Recibidos en el Área | D169: 89 | E169: 111 | F169: 68 | G169: 63 | H169: 90 | I169: 65 | J169: 40 | K169: 69 | L169: 73 | M169: 57 | N169: 37 | O169: 20 | P169: =SUM(D169:O169) -> 782 | Q169: =AVERAGE(D169:O169) -> 65.16666667
B170: 2.5.6.1 | C170: Generados por el Área | D170: 74 | E170: 151 | F170: 123 | G170: 139 | H170: 154 | I170: 148 | J170: 107 | K170: 142 | L170: 104 | M170: 133 | N170: 126 | O170: 68 | P170: =SUM(D170:O170) -> 1469 | Q170: =AVERAGE(D170:O170) -> 122.4166667
B175: LIC. GABRIEL ALBERTO LARA CASTRO
B176: DIRECTOR JURIDICO DE LO CONTENCIOSO

Sheet 2017
B2: INFORME MENSUAL DE ACT. 2017 DIRERCCIÓN JURÍDICA CONTENCIOSA | D2: ENE | E2: FEB | F2: MAR | G2: ABR | H2: MAY | I2: JUN | J2: JUL | K2: AGO | L2: SEP | M2: OCT | N2: NOV | O2: DIC | P2: TOTAL | Q2: PROMEDIO
A3: 2.1. | B3: Juicios de Amparo
B4: 2.1.1. | C4: Registro Anterior | D4: 675 | E4: =D12 -> 678 | F4: 730 | G4: 805 | H4: 852 | I4: 815 | J4: 812 | K4: 836 | L4: 803 | M4: 815 | N4: 816 | O4: 835 | Q4: =P4/12 -> 0
B5: 2.1.2 | C5: Abiertos en el Mes | D5: 39 | E5: 76 | F5: 106 | G5: 58 | H5: 54 | I5: 39 | J5: 34 | K5: 31 | L5: 28 | M5: 38 | N5: 60 | O5: 33 | P5: =SUM(D5:O5) -> 596 | Q5: 49.66666667
B6: 2.1.3 | C6: Iniciales en | D6: =D4+D5 -> 714 | E6: 754 | F6: 836 | G6: 863 | H6: 906 | I6: 854 | J6: 846 | K6: 867 | L6: 831 | M6: 853 | N6: 876 | O6: 868 | P6: 10068 | Q6: 839
B7: 2.1.4 | C7: Resueltos y concluidos | D7: 36 | E7: 24 | F7: 31 | G7: 11 | H7: 91 | I7: 42 | J7: 10 | K7: 64 | L7: 16 | M7: 37 | N7: 41 | O7: 10 | P7: 413 | Q7: 34.41666667
C8: Sobreseimiento o Negativa de Amparo | D8: 18 | E8: 9 | F8: 21 | G8: 8 | H8: 43 | I8: 27 | J8: 2 | K8: 42 | L8: 7 | M8: 20 | N8: 24 | O8: 3 | P8: 224 | Q8: 18.66666667
C9: Concediendo el amparo | D9: 8 | E9: 3 | F9: 3 | G9: 0 | H9: 11 | I9: 5 | J9: 3 | K9: 7 | L9: 1 | M9: 8 | N9: 4 | O9: 4 | P9: 57 | Q9: 4.75
C10: Sobreseimiento y concede Amparo | D10: 4 | E10: 3 | F10: 2 | G10: 0 | H10: 15 | I10: 5 | J10: 2 | K10: 9 | L10: 3 | M10: 5 | N10: 7 | O10: 2 | P10: 57 | Q10: 4.75
C11: Sobresee, no Ampara y Ampara | D11: 6 | E11: 9 | F11: 5 | G11: 350 | H11: 22 | I11: 5 | J11: 3 | K11: 6 | L11: 5 | M11: 4 | N11: 6 | O11: 2 | P11: 423 | Q11: 35.25
B12: 2.1.5 | C12: En trámite | D12: =D6-D7 -> 678 | E12: 730 | F12: 805 | G12: 852 | H12: 815 | I12: 812 | J12: 836 | K12: 803 | L12: 815 | M12: 816 | N12: 835 | O12: 858 | P12: 9655 | Q12: 804.5833333
B13: 2.1.6 Audiencias y diligencias en Juicios. | D13: 25 | E13: 25 | F13: 25 | G13: 25 | H13: 22 | I13: 15 | J13: 25 | K13: 90 | L13: 20 | M13: 30 | N13: 35 | O13: 15 | P13: 352 | Q13: 29.33333333
B14: 2.1.7 Asesorías y Reuniones. | D14: 25 | E14: 25 | F14: 25 | G14: 25 | H14: 25 | I14: 15 | J14: 8 | K14: 73 | L14: 25 | M14: 30 | N14: 15 | O14: 10 | P14: 301 | Q14: 25.08333333
B15: 2.1.8 Oficios.
B16: 2.1.8.1 | C16: Recibidos en el Área | D16: 799 | E16: 676 | F16: 1088 | G16: 972 | H16: 1001 | I16: 863 | J16: 752 | K16: 691 | L16: 601 | M16: 660 | N16: 765 | O16: 503 | P16: =SUM(D16:O16) -> 9371 | Q16: =P16/12 -> 780.9166667
B17: 2.1.8.2 | C17: Generados por el Área | D17: 692 | E17: 529 | F17: 767 | G17: 694 | H17: 822 | I17: 787 | J17: 681 | K17: 495 | L17: 483 | M17: 504 | N17: 544 | O17: 562 | P17: =SUM(D17:O17) -> 7560 | Q17: =P17/12 -> 630
A18: 2.2 | B18: Juicios Agrarios
B19: 2.1.2.1 | C19: Registro Anterior | D19: 68 | E19: =D25 -> 65 | F19: 53 | G19: 53 | H19: 53 | I19: 53 | J19: 49 | K19: 45 | L19: 45 | M19: 46 | N19: 46 | O19: 49 | P19: =SUM(D19:O19) -> 625 | Q19: =P19/12 -> 52.08333333
B20: 2.1.2.2 | C20: Abiertos en el Mes | D20: 0 | E20: 0 | F20: 0 | G20: 0 | H20: 0 | I20: 0 | J20: 0 | K20: 0 | L20: 1 | M20: 0 | N20: 3 | O20: 0 | P20: 4 | Q20: 0.3333333333
B21: 2.1.2.3 | C21: Iniciales en | D21: =D19+D20 -> 68 | E21: 65 | F21: 53 | G21: 53 | H21: 53 | I21: 53 | J21: 49 | K21: 45 | L21: 46 | M21: 46 | N21: 49 | O21: 49 | P21: 629 | Q21: 52.41666667
B22: 2.1.2.4 | C22: Resueltos y concluidos | D22: 3 | E22: 12 | F22: 0 | G22: 0 | H22: 0 | I22: 4 | J22: 4 | K22: 0 | L22: 0 | M22: 0 | N22: 0 | O22: 0 | P22: 23 | Q22: 1.916666667
C23: Favorables | D23: 3 | E23: 12 | F23: 0 | G23: 0 | H23: 0 | I23: 4 | J23: 4 | K23: 0 | L23: 0 | M23: 0 | N23: 0 | O23: 0 | P23: 23 | Q23: 1.916666667
C24: Desfavorables | D24: 0 | E24: 0 | F24: 0 | G24: 0 | H24: 0 | I24: 0 | J24: 0 | K24: 0 | L24: 0 | M24: 0 | N24: 0 | O24: 0 | P24: 0 | Q24: 0
B25: 2.1.2.5 | C25: En trámite | D25: =D21-D22 -> 65 | E25: 53 | F25: 53 | G25: 53 | H25: 53 | I25: 49 | J25: 45 | K25: 45 | L25: 46 | M25: 46 | N25: 49 | O25: 49 | P25: 606 | Q25: 50.5
B26: 2.1.4 Audiencias y diligencias en Juicios. | D26: 5 | E26: 6 | F26: 0 | G26: 6 | H26: 5 | I26: 5 | J26: 0 | K26: 27 | L26: 3 | M26: 4 | N26: 5 | O26: 2 | P26: 68 | Q26: 5.666666667
B27: 2.1.5 Asesorías y Reuniones. | D27: 9 | E27: 13 | F27: 5 | G27: 9 | H27: 9 | I27: 7 | J27: 5 | K27: 10 | L27: 8 | M27: 5 | N27: 15 | O27: 15 | P27: 110 | Q27: 9.166666667
B28: 2.1.6 Oficios.
B29: 2.1.6.1 | C29: Recibidos en el Área | D29: 25 | E29: 15 | F29: 8 | G29: 13 | H29: 14 | I29: 75 | J29: 17 | K29: 18 | L29: 25 | M29: 14 | N29: 16 | O29: 8 | P29: =SUM(D29:O29) -> 248 | Q29: =P29/12 -> 20.66666667
B30: 2.1.6.2 | C30: Generados por el Área | D30: 25 | E30: 34 | F30: 8 | G30: 6 | H30: 19 | I30: 57 | J30: 20 | K30: 27 | L30: 26 | M30: 16 | N30: 15 | O30: 3 | P30: =SUM(D30:O30) -> 256 | Q30: =P30/12 -> 21.33333333
D33: ENE | E33: FEB | F33: MAR | G33: ABR | H33: MAY | I33: JUN | J33: JUL | K33: AGO | L33: SEP | M33: OCT | N33: NOV | O33: DIC | P33: TOTAL | Q33: PROMEDIO
A34: 2.3 | B34: Área de Juicios Administrativos
B35: 2.3.1 Juicios de Nulidad
B36: 2.3.1.1 | C36: Registro Anterior | D36: 2095 | E36: =D43 -> 2098 | F36: 2159 | G36: 2266 | H36: 2351 | I36: 2405 | J36: 2496 | K36: 2260 | L36: 2396 | M36: 2480 | N36: 2568 | O36: 2571 | P36: =SUM(D36:O36) -> 28145 | Q36: =P36/12 -> 2345.416667
B37: 2.3.1.2 | C37: Abiertos en el Mes | D37: 87 | E37: 71 | F37: 112 | G37: 92 | H37: 57 | I37: 97 | J37: 63 | K37: 141 | L37: 91 | M37: 89 | N37: 100 | O37: 64 | P37: 1064 | Q37: 88.66666667
B38: 2.3.1.3 | C38: Iniciales en | D38: =D36+D37 -> 2182 | E38: 2169 | F38: 2271 | G38: 2358 | H38: 2408 | I38: 2502 | J38: 2559 | K38: 2401 | L38: 2487 | M38: 2569 | N38: 2668 | O38: 2635 | P38: 29209 | Q38: 2434.083333
B39: 2.3.1.4 | C39: Resueltos y concluidos | D39: 84 | E39: 10 | F39: 5 | G39: 7 | H39: 3 | I39: 6 | J39: 299 | K39: 5 | L39: 7 | M39: 1 | N39: 97 | O39: 3 | P39: 527 | Q39: 43.91666667
C40: Favorables | D40: 3 | E40: 8 | F40: 2 | G40: 4 | H40: 1 | I40: 3 | J40: 150 | K40: 1 | L40: 1 | M40: 0 | N40: 34 | O40: 3 | P40: 210 | Q40: 17.5
C41: Desfavorables | D41: 3 | E41: 2 | F41: 3 | G41: 3 | H41: 2 | I41: 3 | J41: 149 | K41: 4 | L41: 6 | M41: 1 | N41: 63 | O41: 0
C42: Turnadas a Despacho Externo | D42: 0 | E42: 0 | F42: 0 | G42: 0 | H42: 0 | I42: 0 | J42: 0 | K42: 0 | L42: 0 | M42: 0 | N42: 0 | O42: 0 | P42: =SUM(I42:O42) -> 0 | Q42: =P42/12 -> 0
B43: 2.3.1.5 | C43: En trámite | D43: =D38-D39 -> 2098 | E43: 2159 | F43: 2266 | G43: 2351 | H43: 2405 | I43: 2496 | J43: 2260 | K43: 2396 | L43: 2480 | M43: 2568 | N43: 2571 | O43: 2632
B44: 2.3.1.6 Audiencias y diligencias en Juicios y Proc | D44: 12 | E44: 4 | F44: 1 | G44: 4 | H44: 2 | I44: 1 | J44: 2 | K44: 8 | L44: 12 | M44: 9 | N44: 8 | O44: 11 | P44: 74 | Q44: 6.166666667
B45: 2.3.1.7 Asesorías y Reuniones. | D45: 15 | E45: 13 | F45: 15 | G45: 22 | H45: 12 | I45: 13 | J45: 9 | K45: 13 | L45: 9 | M45: 20 | N45: 31 | O45: 18 | P45: 190 | Q45: 15.83333333
B46: 2.3.1.8 Oficios.
C47: Recibidos en el Área | D47: 25 | E47: 19 | F47: 22 | G47: 14 | H47: 8 | I47: 12 | J47: 24 | K47: 30 | L47: 67 | M47: 29 | N47: 36 | O47: 20 | P47: =SUM(D47:O47) -> 306 | Q47: =P47/12 -> 25.5
C48: Generados por el Área | D48: 297 | E48: 227 | F48: 318 | G48: 272 | H48: 236 | I48: 334 | J48: 218 | K48: 341 | L48: 244 | M48: 246 | N48: 299 | O48: 194 | P48: =SUM(D48:O48) -> 3226 | Q48: =P48/12 -> 268.8333333
B49: 2.3.2 Juicios de Lesividad
B50: 2.3.2.1 | C50: Registro Anterior | D50: 18 | E50: =D57 -> 18 | F50: 18 | G50: 18 | H50: 18 | I50: 18 | J50: 17 | K50: 19 | L50: 19 | M50: 19 | N50: 19 | O50: 19 | P50: =SUM(D50:O50) -> 220 | Q50: =P50/12 -> 18.33333333
B51: 2.3.2.2 | C51: Abiertos en el Mes | D51: 0 | E51: 0 | F51: 0 | G51: 0 | H51: 0 | I51: 0 | J51: 2 | K51: 0 | L51: 0 | M51: 0 | N51: 0 | O51: 0 | P51: 2 | Q51: 0.1666666667
B52: 2.3.2.3 | C52: Sub-total | D52: =D50+D51 -> 18 | E52: 18 | F52: 18 | G52: 18 | H52: 18 | I52: 18 | J52: 19 | K52: 19 | L52: 19 | M52: 19 | N52: 19 | O52: 19 | P52: 222 | Q52: 18.5
B53: 2.3.2.4 | C53: Resueltos y concluidos | D53: 0 | E53: 0 | F53: 0 | G53: 0 | H53: 0 | I53: 1 | J53: 0 | K53: 0 | L53: 0 | M53: 0 | N53: 0 | O53: 0 | P53: 1 | Q53: 0.08333333333
C54: Se declara la Nulidad del acto | D54: 0 | E54: 0 | F54: 0 | G54: 0 | H54: 0 | I54: 1 | J54: 0 | K54: 0 | L54: 0 | M54: 0 | N54: 0 | O54: 0 | P54: 1 | Q54: 0.08333333333
C55: desist.de la accion y validez del acto (Fav.al Part.) | D55: 0 | E55: 0 | F55: 0 | G55: 0 | H55: 0 | I55: 0 | J55: 0 | K55: 0 | L55: 0 | M55: 0 | N55: 0 | O55: 0 | P55: 0 | Q55: 0
C56: Defensa Legal en otras Dependencias | D56: 0 | E56: 0 | F56: 0 | G56: 0 | H56: 0 | I56: 0 | J56: 0 | K56: 0 | L56: 0 | M56: 0 | N56: 0 | O56: 0 | P56: 0 | Q56: 0
B57: 2.3.2.5 | C57: En trámite | D57: =D52-D53 -> 18 | E57: 18 | F57: 18 | G57: 18 | H57: 18 | I57: 17 | J57: 19 | K57: 19 | L57: 19 | M57: 19 | N57: 19 | O57: 19
D63: ENE | E63: FEB | F63: MAR | G63: ABR | H63: MAY | I63: JUN | J63: JUL | K63: AGO | L63: SEP | M63: OCT | N63: NOV | O63: DIC | P63: TOTAL | Q63: PROMEDIO
A64: 2.3 | B64: Área de Procedimientos Administrativos
B65: Responsabilidad Laboral
B66: 2.3.1.1 | C66: Registro Anterior | D66: 13 | E66: =D72 -> 15 | F66: 13 | G66: 10 | H66: 9 | I66: 11 | J66: 11 | K66: 15 | L66: 18 | M66: =L72 -> 14 | N66: =M72 -> 17 | O66: =N72 -> 21 | P66: =SUM(D66:O66) -> 167 | Q66: =AVERAGE(D66:O66) -> 13.91666667
B67: 2.3.1.2 | C67: Abiertos en el Mes | D67: 6 | E67: 3 | F67: 2 | G67: 3 | H67: 4 | I67: 3 | J67: 7 | K67: 10 | L67: 5 | M67: 9 | N67: 7 | O67: 1 | P67: 60 | Q67: =AVERAGE(D67:O67) -> 5
B68: 2.3.1.3 | C68: Iniciales en | D68: =D66+D67 -> 19 | E68: 18 | F68: 15 | G68: 13 | H68: 13 | I68: 14 | J68: 18 | K68: 25 | L68: 23 | M68: =M66+M67 -> 23 | N68: =N66+N67 -> 24 | O68: =O66+O67 -> 22 | P68: 227 | Q68: =P69/P67 -> 1
B69: 2.3.1.4 | C69: Resueltos y concluidos | D69: 4 | E69: 5 | F69: 5 | G69: 4 | H69: 2 | I69: 3 | J69: 3 | K69: 7 | L69: 9 | M69: 6 | N69: 3 | O69: 9 | P69: 60 | Q69: =AVERAGE(D69:O69) -> 5
C70: con sanción | D70: 3 | E70: 2 | F70: 1 | G70: 2 | H70: 1 | I70: 3 | J70: 0 | K70: 2 | L70: 3 | M70: 2 | N70: 1 | O70: 4 | P70: 24 | Q70: =AVERAGE(D70:O70) -> 2
C71: sin sanción | D71: 1 | E71: 3 | F71: 4 | G71: 2 | H71: 1 | I71: 0 | J71: 3 | K71: 5 | L71: 6 | M71: 4 | N71: 2 | O71: 5 | P71: 36 | Q71: =AVERAGE(D71:O71) -> 3
B72: 2.3.1.5 | C72: En trámite | D72: =D68-D69 -> 15 | E72: 13 | F72: 10 | G72: 9 | H72: 11 | I72: 11 | J72: 15 | K72: 18 | L72: 14 | M72: 17 | N72: 21 | O72: 13 | P72: =SUM(D72:O72) -> 167
B73: 2.3.6 Audiencias y Diligencias | D73: 9 | E73: 10 | F73: 9 | G73: 4 | H73: 6 | I73: 7 | J73: 6 | K73: 16 | L73: 14 | M73: 15 | N73: 11 | O73: 9 | P73: =SUM(D73:O73) -> 116 | Q73: =AVERAGE(D73:O73) -> 9.666666667
B74: 2.3.7 Asesorías y Reuniones. | D74: 7 | E74: 13 | F74: 17 | G74: 7 | H74: 7 | I74: 13 | J74: 19 | K74: 13 | L74: 12 | M74: 13 | O74: 7 | P74: =SUM(D74:O74) -> 128 | Q74: =AVERAGE(D74:O74) -> 11.63636364
B75: 2.3.8 Oficios. | N75: 12
B76: 2.3.8.1 | C76: Recibidos en el Área | D76: 10 | E76: 11 | F76: 12 | G76: 4 | H76: 8 | I76: 19 | J76: 18 | K76: 25 | L76: 13 | M76: 16 | N76: 16 | O76: 13 | P76: =SUM(D76:O76) -> 165 | Q76: =AVERAGE(D76:O76) -> 13.75
B77: 2.3.8.2 | C77: Generados por el Área | D77: 31 | E77: 24 | F77: 39 | G77: 17 | H77: 23 | I77: 34 | J77: 39 | K77: 70 | L77: 43 | M77: 53 | N77: 65 | O77: 27 | P77: =SUM(D77:O77) -> 465 | Q77: =AVERAGE(D77:O77) -> 38.75
B78: Organo de Control Disciplinario (OCD)
B79: 2.3.2.1 | C79: Registro Anterior | D79: 172 | E79: =D86 -> 164 | F79: 148 | G79: 148 | H79: 145 | I79: 134 | J79: 141 | K79: 151 | L79: 159 | M79: 157 | N79: 160 | O79: 161 | P79: =SUM(D79:O79) -> 1840 | Q79: =AVERAGE(D79:O79) -> 153.3333333
B80: 2.3.2.2 | C80: Abiertos en el Mes | D80: 14 | E80: 8 | F80: 13 | G80: 3 | H80: 17 | I80: 16 | J80: 14 | K80: 11 | L80: 12 | M80: 14 | N80: 7 | O80: 6 | P80: 135 | Q80: =AVERAGE(D80:O80) -> 11.25
B81: 2.3.2.3 | C81: Iniciales en | D81: =D79+D80 -> 186 | E81: 172 | F81: 161 | G81: 151 | H81: 162 | I81: 150 | J81: 155 | K81: =K79+K80 -> 162 | L81: =L79+L80 -> 171 | M81: =M79+M80 -> 171 | N81: =N79+N80 -> 167 | O81: =O79+O80 -> 167 | P81: 1975 | Q81: =P82/P80 -> 1.074074074
B82: 2.3.2.4 | C82: Resueltos y concluidos | D82: 22 | E82: 24 | F82: 13 | G82: 6 | H82: 28 | I82: 9 | J82: 4 | K82: 3 | L82: 14 | M82: 11 | N82: 6 | O82: 5 | P82: 145 | Q82: =AVERAGE(D82:O82) -> 12.08333333
C83: con sanción | D83: 8 | E83: 18 | F83: 1 | G83: 1 | H83: 27 | I83: 1 | J83: 1 | K83: 2 | L83: 7 | M83: 5 | N83: 4 | O83: 3 | P83: 78 | Q83: =AVERAGE(D83:O83) -> 6.5
C84: sin sanción | D84: 14 | E84: 5 | F84: 12 | G84: 5 | H84: 0 | I84: 8 | J84: 3 | K84: 1 | L84: 6 | M84: 6 | N84: 2 | O84: 2 | P84: 64 | Q84: =AVERAGE(D84:O84) -> 5.333333333
C85: no se admite (acumulado | D85: 0 | E85: 1 | F85: 0 | G85: 0 | H85: 1 | I85: 0 | J85: 0 | K85: 0 | L85: 1 | M85: 0 | N85: 0 | O85: 0 | P85: 3
B86: 2.4.3.5 | C86: En trámite | D86: =D81-D82 -> 164 | E86: 148 | F86: 148 | G86: 145 | H86: 134 | I86: 141 | J86: 151 | K86: =K81-K82 -> 159 | L86: =L81-L82 -> 157 | M86: =M81-M82 -> 160 | N86: =N81-N82 -> 161 | O86: =O81-O82 -> 162 | P86: 1830
B87: 2.4.6 Audiencias y diligencias en Proc | D87: 15 | E87: 21 | F87: 25 | G87: 18 | H87: 25 | I87: 20 | J87: 26 | K87: 19 | L87: 35 | M87: 33 | N87: 42 | O87: 23 | P87: 302 | Q87: =AVERAGE(D87:O87) -> 25.16666667
B88: 2.4.6 Asesorías y Reuniones. | D88: 18 | E88: 18 | F88: 19 | G88: 22 | H88: 26 | I88: 17 | J88: 17 | K88: 25 | L88: 37 | M88: 36 | N88: 28 | O88: 17 | P88: 280 | Q88: =AVERAGE(D88:O88) -> 23.33333333
B89: 2.4.7 Oficios.
B90: 2.4.7.1 | C90: Recibidos en el Área | D90: 68 | E90: 46 | F90: 57 | G90: 26 | H90: 62 | I90: 81 | J90: 141 | K90: 98 | L90: 83 | M90: 88 | N90: 75 | O90: 51 | P90: =SUM(D90:O90) -> 876 | Q90: =AVERAGE(D90:O90) -> 73
B91: 2.4.7.2 | C91: Generados por el Área | D91: 134 | E91: 86 | F91: 77 | G91: 45 | H91: 128 | I91: 154 | J91: 144 | K91: 129 | L91: 107 | M91: 119 | N91: 144 | O91: 41 | P91: =SUM(D91:O91) -> 1308 | Q91: =AVERAGE(D91:O91) -> 109
D97: ENE | E97: FEB | F97: MAR | G97: ABR | H97: MAY | I97: JUN | J97: JUL | K97: AGO | L97: SEP | M97: OCT | N97: NOV | O97: DIC | P97: TOTAL | Q97: PROMEDIO
B98: Recursos
B99: 2.2.2.1 | C99: Registro Anterior | D99: 50 | E99: =D105 -> 57 | F99: 65 | G99: 70 | H99: 80 | I99: 74 | J99: 84 | K99: 84 | L99: 82 | M99: 83 | N99: 77 | O99: 84 | P99: =SUM(D99:O99) -> 890 | Q99: =P99/12 -> 74.16666667
B100: 2.2.2.2 | C100: Abiertos en el Mes | D100: 11 | E100: 14 | F100: 14 | G100: 14 | H100: 5 | I100: 21 | J100: 13 | K100: 12 | L100: 17 | M100: 9 | N100: 7 | O100: 5 | P100: 142 | Q100: 11.83333333
B101: 2.2.2.3 | C101: Iniciales en | D101: =D99+D100 -> 61 | E101: 71 | F101: 79 | G101: 84 | H101: 85 | I101: 95 | J101: 97 | K101: 96 | L101: 99 | M101: 92 | N101: 84 | O101: 89 | P101: 1032 | Q101: 86
B102: 2.2.2.4 | C102: Resueltos y concluidos | D102: 4 | E102: 6 | F102: 9 | G102: 4 | H102: 11 | I102: 11 | J102: 13 | K102: 14 | L102: 16 | M102: 15 | N102: 0 | O102: 23 | P102: 126 | Q102: 10.5
C103: Se confirma el acto reclamado | D103: 2 | E103: 3 | F103: 3 | G103: 4 | H103: 5 | I103: 2 | J103: 6 | K103: 10 | L103: 13 | M103: 9 | N103: 0 | O103: 3 | P103: 60 | Q103: 5
C104: Favorables al particular | D104: 2 | E104: 3 | F104: 6 | G104: 0 | H104: 6 | I104: 9 | J104: 6 | K104: 4 | L104: 3 | M104: 6 | N104: 0 | O104: 20 | P104: 65 | Q104: 5.416666667
B105: 2.2.2.5 | C105: En trámite | D105: =D101-D102 -> 57 | E105: 65 | F105: 70 | G105: 80 | H105: 74 | I105: 84 | J105: 84 | K105: 82 | L105: 83 | M105: 77 | N105: 84 | O105: 66 | P105: 906 | Q105: 75.5
B106: Revocación de Licencia Municipal
B107: 2.2.3.1 | C107: Registro Anterior | D107: 31 | E107: =D113 -> 29 | F107: 27 | G107: 25 | H107: 32 | I107: 31 | J107: 31 | K107: 33 | L107: 30 | M107: 31 | N107: 33 | O107: 34 | P107: =SUM(D107:O107) -> 367 | Q107: =P107/12 -> 30.58333333
B108: 2.2.3.2 | C108: Abiertos en el Mes | D108: 0 | E108: 1 | F108: 1 | G108: 8 | H108: 2 | I108: 1 | J108: 2 | K108: 1 | L108: 1 | M108: 2 | N108: 1 | O108: 0 | P108: 20 | Q108: 1.666666667
B109: 2.2.3.3 | C109: Iniciales en | D109: =D107+D108 -> 31 | E109: 30 | F109: 28 | G109: 33 | H109: 34 | I109: 32 | J109: 33 | K109: 34 | L109: 31 | M109: 33 | N109: 34 | O109: 34 | P109: 387 | Q109: 32.25
B110: 2.2.3.4 | C110: Resueltos y concluidos | D110: 2 | E110: 3 | F110: 3 | G110: 1 | H110: 3 | I110: 1 | J110: 0 | K110: 4 | L110: 0 | M110: 0 | N110: 0 | O110: 6 | P110: 23 | Q110: 1.916666667
C111: Procedentes | D111: 1 | E111: 1 | F111: 2 | G111: 0 | H111: 0 | I111: 1 | J111: 0 | K111: 3 | L111: 0 | M111: 0 | N111: 0 | O111: 6 | P111: 14 | Q111: 1.166666667
C112: Favorables al particular | D112: 1 | E112: 2 | F112: 1 | G112: 1 | H112: 3 | I112: 0 | J112: 0 | K112: 1 | L112: 0 | M112: 0 | N112: 0 | O112: 0 | P112: 9 | Q112: 0.75
B113: 2.2.3.5 | C113: En trámite | D113: =D109-D110 -> 29 | E113: 27 | F113: 25 | G113: 32 | H113: 31 | I113: 31 | J113: 33 | K113: 30 | L113: 31 | M113: 33 | N113: 34 | O113: 28
B114: 2.3.5 Audiencias y diligencias en Juicios | D114: 0 | E114: 0 | F114: 0 | G114: 0 | H114: 2 | I114: 2 | J114: 3 | K114: 7 | L114: 3 | M114: 3 | N114: 0 | O114: 0 | P114: =SUM(D114:O114) -> 20 | Q114: =AVERAGE(D114:O114) -> 1.666666667
B115: 2.3.6 Asesorías y Reuniones. | D115: 8 | E115: 3 | F115: 18 | G115: 11 | H115: 21 | I115: 14 | J115: 15 | K115: 11 | L115: 10 | M115: 13 | N115: 15 | O115: 10 | P115: =SUM(D115:O115) -> 149 | Q115: =AVERAGE(D115:O115) -> 12.41666667
B116: 2.3.7 Oficios.
B117: 2.3.7.1 | C117: Recibidos en el Área | D117: 16 | E117: 17 | F117: 19 | G117: 12 | H117: 48 | I117: 35 | J117: 21 | K117: 18 | L117: 19 | M117: 42 | N117: 20 | O117: 19 | P117: =SUM(D117:O117) -> 286 | Q117: =AVERAGE(D117:O117) -> 23.83333333
B118: 2.3.7.2 | C118: Generados por el Área | D118: 38 | E118: 28 | F118: 64 | G118: 25 | H118: 43 | I118: 67 | J118: 55 | K118: 58 | L118: 46 | M118: 60 | N118: 51 | O118: 23 | P118: =SUM(D118:O118) -> 558 | Q118: =AVERAGE(D118:O118) -> 46.5
B119: Responsabilidad Patrimonial
B120: 2.2.4.1 | C120: Registro Anterior | D120: 78 | E120: =D127 -> 69 | F120: =E127 -> 64 | G120: =F127 -> 60 | H120: 63 | I120: 60 | J120: 61 | K120: 58 | L120: 57 | M120: 61 | N120: 64 | O120: 58 | P120: =SUM(D120:O120) -> 753 | Q120: =P120/12 -> 62.75
B121: 2.2.4.2 | C121: Abiertos en el Mes | D121: 6 | E121: 2 | F121: 1 | G121: 5 | H121: 5 | I121: 10 | J121: 3 | K121: 10 | L121: 15 | M121: 9 | N121: 7 | O121: 4 | P121: 77 | Q121: 6.416666667
B122: 2.2.4.3 | C122: Iniciales en | D122: =D120+D121 -> 84 | E122: 71 | F122: 65 | G122: 65 | H122: 68 | I122: 70 | J122: 64 | K122: 68 | L122: 72 | M122: 70 | N122: 71 | O122: 62 | P122: 830 | Q122: 69.16666667
B123: 2.2.4.4 | C123: Resueltos y concluidos | D123: 15 | E123: 7 | F123: 5 | G123: 2 | H123: 8 | I123: 9 | J123: 6 | K123: 11 | L123: 11 | M123: 6 | N123: 13 | O123: 2 | P123: 95 | Q123: 7.916666667
C124: Favorables al particular | D124: 5 | E124: 6 | F124: 2 | G124: 1 | H124: 6 | I124: 1 | J124: 2 | K124: 5 | L124: 6 | M124: 1 | N124: 2 | O124: 1 | P124: 38 | Q124: 3.166666667
C125: Favorables al aytto. | D125: 6 | E125: 0 | F125: 1 | G125: 1 | H125: 2 | I125: 3 | J125: 3 | K125: 6 | L125: 5 | M125: 3 | N125: 5 | O125: 0 | P125: 35 | Q125: 2.916666667
C126: Incompetentes | D126: 4 | E126: 1 | F126: 2 | G126: 0 | H126: 0 | I126: 7 | J126: 1 | K126: 0 | L126: 0 | M126: 2 | N126: 6 | O126: 1 | P126: 24 | Q126: 2
B127: 2.2.4.5 | C127: En trámite | D127: =D122-D123 -> 69 | E127: 64 | F127: 60 | G127: 63 | H127: 60 | I127: 61 | J127: 58 | K127: 57 | L127: 61 | M127: 64 | N127: 58 | O127: 60 | P127: =SUM(D127:O127) -> 735 | Q127: 61.25
B128: 2.3.5 Audiencias y diligencias en Juicios | D128: 2 | E128: 3 | F128: 1 | G128: 1 | H128: 2 | I128: 3 | J128: 3 | K128: 4 | L128: 3 | M128: 3 | N128: 2 | O128: 2 | P128: =SUM(D128:O128) -> 29 | Q128: =AVERAGE(D128:O128) -> 2.416666667
B129: 2.3.6 Asesorías y Reuniones. | D129: 17 | E129: 15 | F129: 13 | G129: 11 | H129: 13 | I129: 15 | J129: 15 | K129: 17 | L129: 16 | M129: 14 | N129: 16 | O129: 15 | P129: =SUM(D129:O129) -> 177 | Q129: =AVERAGE(D129:O129) -> 14.75
B130: 2.3.7 Oficios.
B131: 2.3.7.1 | C131: Recibidos en el Área | D131: 37 | E131: 84 | F131: 17 | G131: 19 | H131: 20 | I131: 24 | J131: 33 | K131: 60 | L131: 58 | M131: 46 | N131: 76 | O131: 40 | P131: =SUM(D131:O131) -> 514 | Q131: =AVERAGE(D131:O131) -> 42.83333333
B132: 2.3.7.2 | C132: Generados por el Área | D132: 43 | E132: 19 | F132: 16 | G132: 11 | H132: 20 | I132: 39 | J132: 25 | K132: 29 | L132: 26 | M132: 24 | N132: 20 | O132: 12 | P132: =SUM(D132:O132) -> 284 | Q132: =AVERAGE(D132:O132) -> 23.66666667
D133: ENE | E133: FEB | F133: MAR | G133: ABR | H133: MAY | I133: JUN | J133: JUL | K133: AGO | L133: SEP | M133: OCT | N133: NOV | O133: DIC | P133: TOTAL | Q133: PROMEDIO
A134: 2.4 | B134: Área de Procedimientos Civiles.
B135: 2.3.1 Juicios Civiles
B136: 2.3.1.1 | C136: Registro Anterior | D136: 343 | E136: =D142 -> 343 | F136: 343 | G136: 343 | H136: 342 | I136: 342 | J136: 344 | K136: 348 | L136: 342 | M136: 342 | N136: 343 | O136: 344 | P136: =SUM(D136:O136) -> 4119 | Q136: =AVERAGE(D136:O136) -> 343.25
B137: 2.3.1.2 | C137: Abiertos en el Mes | D137: 1 | E137: 1 | F137: 1 | G137: 0 | H137: 1 | I137: 2 | J137: 4 | K137: 2 | L137: 0 | M137: 1 | N137: 1 | O137: 2 | P137: 16 | Q137: =AVERAGE(D137:O137) -> 1.333333333
B138: 2.3.1.3 | C138: Iniciales en | D138: =D136+D137 -> 344 | E138: 344 | F138: 344 | G138: 343 | H138: 343 | I138: 344 | J138: 348 | K138: 350 | L138: 342 | M138: 343 | N138: 344 | O138: 346 | P138: 4135 | Q138: =P139/P137 -> 0.8125
B139: 2.3.1.4 | C139: Resueltos y concluidos | D139: 1 | E139: 1 | F139: 1 | G139: 1 | H139: 1 | I139: 0 | J139: 0 | K139: 8 | L139: 0 | M139: 0 | N139: 0 | O139: 0 | P139: 13 | Q139: =AVERAGE(D139:O139) -> 1.083333333
C140: Favorables | D140: 1 | E140: 1 | F140: 1 | G140: 1 | H140: 1 | I140: 0 | J140: 0 | K140: 8 | L140: 0 | M140: 0 | N140: 0 | O140: 0 | P140: 13 | Q140: =AVERAGE(D140:O140) -> 1.083333333
C141: Desfavorables | D141: 0 | E141: 0 | F141: 0 | G141: 0 | H141: 0 | I141: 0 | J141: 0 | K141: 0 | L141: 0 | M141: 0 | N141: 0 | O141: 0 | P141: 0 | Q141: =AVERAGE(D141:O141) -> 0
B142: 2.3.1.5 | C142: En trámite | D142: =D138-D139 -> 343 | E142: 343 | F142: 343 | G142: 342 | H142: 342 | I142: 344 | J142: 348 | K142: 342 | L142: 342 | M142: 343 | N142: 344 | O142: 346 | P142: 4122 | Q142: =AVERAGE(D142:P142) -> 634.1538462
B143: 2.3.5 Audiencias y diligencias en Juicios | D143: 3 | E143: 7 | F143: 6 | G143: 7 | H143: 3 | I143: 6 | J143: 5 | K143: 4 | L143: 3 | M143: 6 | N143: 3 | O143: 3 | P143: 56 | Q143: =AVERAGE(D143:O143) -> 4.666666667
B144: 2.3.6 Asesorías y Reuniones. | D144: 6 | E144: 9 | F144: 8 | G144: 6 | H144: 6 | I144: 7 | J144: 3 | K144: 6 | L144: 5 | M144: 7 | N144: 5 | O144: 6 | P144: 74 | Q144: =AVERAGE(D144:O144) -> 6.166666667
B145: 2.3.7 Oficios.
B146: 2.3.7.1 | C146: Recibidos en el Área | D146: 28 | E146: 20 | F146: 19 | G146: 17 | H146: 22 | I146: 34 | J146: 20 | K146: 18 | L146: 26 | M146: 26 | N146: 24 | O146: 19 | P146: =SUM(D146:O146) -> 273 | Q146: =AVERAGE(D146:O146) -> 22.75
B147: 2.3.7.2 | C147: Generados por el Área | D147: 11 | E147: 26 | F147: 12 | G147: 5 | H147: 13 | I147: 14 | J147: 34 | K147: 17 | L147: 12 | M147: 15 | N147: 19 | O147: 7 | P147: =SUM(D147:O147) -> 185 | Q147: =AVERAGE(D147:O147) -> 15.41666667
A148: 2.5 | B148: Área de Procedimientos Penales
B149: Expedientes Generales(Av. Previas, Juicios, Internos)
B150: 2.5.1.1 | C150: Registro Anterior | D150: 657 | E150: =D154 -> 665 | F150: 666 | G150: 673 | H150: 675 | I150: 676 | J150: 683 | K150: 689 | L150: 688 | M150: 689 | N150: 692 | O150: 690 | P150: =SUM(D150:O150) -> 8143 | Q150: =AVERAGE(D150:O150) -> 678.5833333
B151: 2.5.1.2 | C151: Abiertos en el Mes | D151: 8 | E151: 3 | F151: 8 | G151: 2 | H151: 10 | I151: 8 | J151: 7 | K151: 4 | L151: 8 | M151: 12 | N151: 4 | O151: 3 | P151: =SUM(D151:O151) -> 77 | Q151: =AVERAGE(D151:O151) -> 6.416666667
B152: 2.5.1.3 | C152: Iniciales en | D152: =D150+D151 -> 665 | E152: 668 | F152: 674 | G152: 675 | H152: 685 | I152: 684 | J152: 690 | K152: 693 | L152: 696 | M152: 701 | N152: 696 | O152: 693 | P152: =SUM(D152:O152) -> 8220 | Q152: =P153/P151 -> 0.5584415584
B153: 2.5.1.4 | C153: Resueltos y concluidos | D153: 0 | E153: 2 | F153: 1 | G153: 0 | H153: 9 | I153: 1 | J153: 1 | K153: 5 | L153: 7 | M153: 9 | N153: 6 | O153: 2 | P153: =SUM(D153:O153) -> 43 | Q153: =AVERAGE(D153:O153) -> 3.583333333
B154: 2.5.1.5 | C154: En trámite | D154: =D152-D153 -> 665 | E154: 666 | F154: 673 | G154: 675 | H154: 676 | I154: 683 | J154: 689 | K154: 688 | L154: 689 | M154: 692 | N154: 690 | O154: 691 | P154: =SUM(D154:O154) -> 8177 | Q154: =AVERAGE(D154:P154) -> 1258
C155: Favorables | D155: 0 | E155: 0 | F155: 0 | G155: 0 | H155: 0 | I155: 0 | J155: 0 | K155: 0 | L155: 0 | M155: 0 | N155: 0 | O155: 0 | Q155: =AVERAGE(D155:O155) -> 0
C156: Archivados | D156: 0 | E156: 2 | F156: 1 | G156: 0 | H156: 9 | I156: 1 | J156: 1 | K156: 5 | L156: 7 | M156: 9 | N156: 6 | O156: 2 | Q156: =AVERAGE(D156:O156) -> 3.583333333
B157: Expedientes Daños a bienes Propiedad Municipal
B158: 2.5.2.1 | C158: Registro Anterior | D158: 208 | E158: =D162 -> 223 | F158: 220 | G158: 229 | H158: 222 | I158: 231 | J158: 239 | K158: 243 | L158: 249 | M158: 246 | N158: 256 | O158: 223 | P158: =SUM(D158:O158) -> 2789 | Q158: =AVERAGE(D158:O158) -> 232.4166667
B159: 2.5.2.2 | C159: Abiertos en el Mes | D159: 33 | E159: 18 | F159: 25 | G159: 10 | H159: 14 | I159: 20 | J159: 18 | K159: 17 | L159: 20 | M159: 25 | N159: 28 | O159: 14 | P159: 242 | Q159: =AVERAGE(D159:O159) -> 20.16666667
B160: 2.5.2.3 | C160: Iniciales en | D160: =D158+D159 -> 241 | E160: 241 | F160: 245 | G160: 239 | H160: 236 | I160: 251 | J160: 257 | K160: 260 | L160: 269 | M160: =M158+M159 -> 271 | N160: =N158+N159 -> 284 | O160: =O158+O159 -> 237 | P160: 3031 | Q160: =P161/P159 -> 0.9545454545
B161: 2.5.2.4 | C161: Resueltos y concluidos | D161: 18 | E161: 21 | F161: 16 | G161: 17 | H161: 5 | I161: 12 | J161: 14 | K161: 11 | L161: 23 | M161: 15 | N161: 61 | O161: 18 | P161: 231 | Q161: =AVERAGE(D161:O161) -> 19.25
B162: 2.5.2.5 | C162: En trámite | D162: =D160-D161 -> 223 | E162: 220 | F162: 229 | G162: 222 | H162: 231 | I162: 239 | J162: 243 | K162: 249 | L162: 246 | M162: =M160-M161 -> 256 | N162: =N160-N161 -> 223 | O162: =O160-O161 -> 219 | P162: 2800 | Q162: =AVERAGE(D162:P162) -> 430.7692308
A163: , | B163: 2.5.2.4 | C163: Dinero Recaudado | D163: 61188.29 | E163: 89110 | F163: 89321 | G163: 73664.7 | H163: 63003.09 | I163: 51777 | J163: 62822 | K163: 26068 | L163: 128162.32 | M163: 135126 | N163: 129904 | O163: 94715 | P163: 1004861.4 | Q163: =AVERAGE(D163:O163) -> 83738.45
B164: 2.5.3 Preliberados.
B165: 2.5.3.1 | C165: Registro Anterior | D165: 658 | E165: =D169 -> 652 | F165: 651 | G165: 652 | H165: 645 | I165: 643 | J165: 641 | K165: 636 | L165: 633 | M165: 629 | N165: 630 | O165: 628 | P165: =SUM(D165:O165) -> 7698 | Q165: =AVERAGE(D165:O165) -> 641.5
B166: 2.5.3.2 | C166: Abiertos en el Mes | D166: 0 | E166: 2 | F166: 7 | G166: 2 | H166: 5 | I166: 1 | J166: 5 | K166: 2 | L166: 4 | M166: 5 | N166: 5 | O166: 2 | P166: 40 | Q166: =AVERAGE(D166:O166) -> 3.333333333
B167: 2.5.3.3 | C167: Iniciales en | D167: =D165+D166 -> 658 | E167: 654 | F167: 658 | G167: 654 | H167: 650 | I167: 644 | J167: 646 | K167: 638 | L167: 637 | M167: 634 | N167: 635 | O167: 630 | P167: 7738 | Q167: =P168/P166 -> 1.8
B168: 2.5.3.4 | C168: Cumplimentaron | D168: 6 | E168: 3 | F168: 6 | G168: 9 | H168: 7 | I168: 3 | J168: 10 | K168: 5 | L168: 8 | M168: 4 | N168: 7 | O168: 4 | P168: 72 | Q168: =AVERAGE(D168:O168) -> 6
B169: 2.5.3.5 | C169: En seguimiento | D169: =D167-D168 -> 652 | E169: 651 | F169: 652 | G169: 645 | H169: 643 | I169: 641 | J169: 636 | K169: 633 | L169: 629 | M169: 630 | N169: 628 | O169: 626 | P169: 7666 | Q169: =AVERAGE(D169:P169) -> 1179.384615
D170: ENE | E170: FEB | F170: MAR | G170: ABR | H170: MAY | I170: JUN | J170: JUL | K170: AGO | L170: SEP | M170: OCT | N170: NOV | O170: DIC | P170: TOTAL | Q170: PROMEDIO
B171: 2.5.4 Audiencias y Diligencias | D171: 12 | E171: 13 | F171: 10 | G171: 8 | H171: 10 | I171: 15 | J171: 5 | K171: 10 | L171: 15 | M171: 10 | N171: 13 | O171: 8 | P171: 129 | Q171: =AVERAGE(D171:O171) -> 10.75
B172: 2.5.5 Asesorías y Reuniones. | D172: 18 | E172: 10 | F172: 12 | G172: 10 | H172: 10 | I172: 36 | J172: 6 | K172: 12 | L172: 16 | M172: 12 | N172: 14 | O172: 10 | P172: 166 | Q172: =AVERAGE(D172:O172) -> 13.83333333
B173: 2.5.6 Oficios.
B174: 2.5.6.1 | C174: Recibidos en el Área | D174: 84 | E174: 86 | F174: 69 | G174: 52 | H174: 52 | I174: 156 | J174: 59 | K174: 55 | L174: 70 | M174: 68 | N174: 93 | O174: 62 | P174: =SUM(D174:O174) -> 906 | Q174: =AVERAGE(D174:O174) -> 75.5
B175: 2.5.6.1 | C175: Generados por el Área | D175: 134 | E175: 122 | F175: 127 | G175: 72 | H175: 77 | I175: 229 | J175: 82 | K175: 72 | L175: 86 | M175: 108 | N175: 138 | O175: 74 | P175: =SUM(D175:O175) -> 1321 | Q175: =AVERAGE(D175:O175) -> 110.0833333
B176: 2.6 JUICIOS LABORALES
B177: 2.6.1 | C177: Registro Anterior | D177: 52 | E177: =D184 -> 78 | F177: 92 | G177: 103 | H177: 102 | I177: 122 | J177: 132 | K177: 145 | L177: 153 | M177: 170 | N177: 184 | O177: 199 | P177: =SUM(D177:O177) -> 1532 | Q177: =P177/12 -> 127.6666667
B178: 2.6.2 | C178: Abiertos en el Mes | D178: 26 | E178: 14 | F178: 11 | G178: 1 | H178: 20 | I178: 11 | J178: 13 | K178: 11 | L178: 17 | M178: 14 | N178: 15 | O178: 17 | P178: 170 | Q178: 14.16666667
B179: 2.6.3 | C179: Iniciales en | D179: =D177+D178 -> 78 | E179: 92 | F179: 103 | G179: 104 | H179: 122 | I179: 133 | J179: 145 | K179: 156 | L179: 170 | M179: 184 | N179: 199 | O179: 216 | P179: 1702 | Q179: 141.8333333
B180: 2.6.4 | C180: Resueltos y concluidos | D180: 0 | E180: 0 | F180: 0 | G180: 2 | H180: 0 | I180: 1 | J180: 0 | K180: 3 | L180: 0 | M180: 0 | N180: 0 | O180: 0 | P180: 6 | Q180: 0.5
C181: Favorables | D181: 0 | E181: 0 | F181: 0 | G181: 0 | H181: 0 | I181: 1 | J181: 0 | K181: 1 | L181: 0 | M181: 0 | N181: 0 | O181: 0 | P181: 2 | Q181: 0.1666666667
C182: Desfavorables | D182: 0 | E182: 0 | F182: 0 | G182: 2 | H182: 0 | I182: 0 | J182: 0 | K182: 1 | L182: 0 | M182: 0 | N182: 0 | O182: 0 | P182: 3 | Q182: 0.25
C183: Parcialmente Favorables | D183: 0 | E183: 0 | F183: 0 | G183: 0 | H183: 0 | I183: 0 | J183: 0 | K183: 1 | L183: 0 | M183: 0 | N183: 0 | O183: 0 | P183: 1 | Q183: 0.08333333333
B184: 2.6.5 | C184: En trámite | D184: =D179-D180 -> 78 | E184: 92 | F184: 103 | G184: 102 | H184: 122 | I184: 132 | J184: 145 | K184: 153 | L184: 170 | M184: 184 | N184: 199 | O184: 216 | P184: =SUM(D184:O184) -> 1696 | Q184: 141.3333333
C185: Turnadas a Despacho Externo | D185: 726 | E185: 726 | F185: 726 | G185: 726 | H185: 726 | I185: 730 | J185: 730 | K185: 730 | L185: 730 | M185: 730 | N185: 730 | O185: 732 | P185: =SUM(I185:O185) -> 5112 | Q185: =P185/12 -> 426
B186: 2.3.5 Audiencias y diligencias en Juicios | D186: 16 | E186: 26 | F186: 33 | G186: 32 | H186: 34 | I186: 64 | J186: 36 | K186: 57 | L186: 31 | M186: 42 | N186: 23 | O186: 13 | P186: =SUM(D186:O186) -> 407 | Q186: =AVERAGE(D186:O186) -> 33.91666667
B187: 2.3.6 Asesorías y Reuniones. | D187: 30 | E187: 20 | F187: 26 | G187: 16 | H187: 22 | I187: 25 | J187: 20 | K187: 15 | L187: 10 | M187: 5 | N187: 6 | O187: 10 | P187: =SUM(D187:O187) -> 205 | Q187: =AVERAGE(D187:O187) -> 17.08333333
B188: 2.3.7 Oficios.
B189: 2.3.7.1 | C189: Recibidos en el Área | D189: 280 | E189: 396 | F189: 380 | G189: 182 | H189: 368 | I189: 373 | J189: 338 | K189: 384 | L189: 461 | M189: 347 | N189: 330 | O189: 246 | P189: =SUM(D189:O189) -> 4085 | Q189: =AVERAGE(D189:O189) -> 340.4166667
B190: 2.3.7.2 | C190: Generados por el Área | D190: 114 | E190: 80 | F190: 95 | G190: 64 | H190: 120 | I190: 130 | J190: 106 | K190: 93 | L190: 90 | M190: 89 | N190: 97 | O190: 68 | P190: =SUM(D190:O190) -> 1146 | Q190: =AVERAGE(D190:O190) -> 95.5
B191: 2.3.4 Recuperacion de Espacios.
B192: 2.3.4.1 | C192: Registro Anterior | D192: 0 | E192: =D198 -> 6 | F192: =E198 -> 5 | G192: 194 | H192: =G198 -> 201 | I192: 206 | J192: 207 | K192: 198 | L192: 201 | M192: 199 | N192: 200 | O192: 201 | P192: =SUM(D192:O192) -> 1818 | Q192: =AVERAGE(D192:O192) -> 151.5
B193: 2.3.4.2 | C193: Abiertos en el Mes | D193: 14 | E193: 6 | F193: 17 | G193: 13 | H193: 9 | I193: 11 | J193: 6 | K193: 5 | L193: 6 | M193: 7 | N193: 8 | O193: 4 | P193: =SUM(D193:O193) -> 106 | Q193: =AVERAGE(D193:O193) -> 8.833333333
B194: 2.3.4.3 | C194: Iniciales en | D194: =D192+D193 -> 14 | E194: 12 | F194: 22 | G194: 207 | H194: 210 | I194: 217 | J194: 213 | K194: 203 | L194: 207 | M194: 206 | N194: 208 | O194: 205 | P194: =SUM(D194:O194) -> 1924 | Q194: =P195/P193 -> 0.9622641509
B195: 2.3.4.4 | C195: Resueltas y concluidas | D195: 8 | E195: 7 | F195: 20 | G195: 6 | H195: 4 | I195: 10 | J195: 15 | K195: 2 | L195: 8 | M195: 6 | N195: 7 | O195: 9 | P195: =SUM(D195:O195) -> 102 | Q195: =AVERAGE(D195:O195) -> 8.5
C196: con recuperacion | D196: 3 | E196: 1 | F196: 4 | G196: 3 | H196: 1 | I196: 4 | J196: 4 | K196: 1 | L196: 1 | M196: 2 | N196: 6 | O196: 4 | P196: =SUM(D196:O196) -> 34
C197: sin recuperacion | D197: 5 | E197: 6 | F197: 16 | G197: 3 | H197: 3 | I197: 6 | J197: 11 | K197: 1 | L197: 7 | M197: 4 | N197: 1 | O197: 5 | P197: 68
B198: 2.2.4.5 | C198: En trámite | D198: =D192+D193-D195 -> 6 | E198: =E192+E193-E195 -> 5 | F198: =F192+F193-F195 -> 2 | G198: =G194-G195 -> 201 | H198: 206 | I198: 207 | J198: 198 | K198: 201 | L198: 199 | M198: 200 | N198: 201 | O198: 196 | P198: =SUM(D198:O198) -> 1822 | Q198: =P198/12 -> 151.8333333
B202: 2.5.4 Audiencias y Diligencias | P202: =SUM(D202:O202) -> 0 | Q202: =AVERAGE(D202:O202) -> 
B203: 2.5.5 Asesorías y Reuniones. | P203: 0 | Q203: =AVERAGE(D203:O203) -> 
B204: 2.5.6 Oficios.
B205: 2.5.6.1 | C205: Recibidos en el Área | P205: =SUM(D205:O205) -> 0 | Q205: =AVERAGE(D205:O205) -> 
B206: 2.5.6.1 | C206: Generados por el Área | P206: =SUM(D206:O206) -> 0 | Q206: =AVERAGE(D206:O206) -> 
B209: 2.3.5 Operativos /Inspecciones | G209: 12 | H209: 27 | I209: 57 | J209: 25 | K209: 25 | L209: 26 | M209: 15 | N209: 42 | O209: 12 | P209: =SUM(D209:O209) -> 241 | Q209: =AVERAGE(D209:O209) -> 26.77777778
B210: 2.3.6 Asesorías y Reuniones. | G210: 4 | H210: 5 | I210: 6 | J210: 4 | K210: 6 | L210: 5 | M210: 4 | N210: 3 | O210: 4 | P210: =SUM(D210:O210) -> 41 | Q210: =AVERAGE(D210:O210) -> 4.555555556
B211: 2.3.7 Oficios.
B212: 2.3.7.1 | C212: Recibidos en el Área | G212: 19 | H212: 41 | I212: 38 | J212: 25 | K212: 26 | L212: 15 | M212: 30 | N212: 17 | O212: 18 | P212: =SUM(D212:O212) -> 229 | Q212: =AVERAGE(D212:O212) -> 25.44444444
B213: 2.3.7.2 | C213: Generados por el Área | G213: 29 | H213: 31 | I213: 42 | J213: 37 | K213: 22 | L213: 39 | M213: 18 | N213: 32 | O213: 21 | P213: =SUM(D213:O213) -> 271 | Q213: =AVERAGE(D213:O213) -> 30.11111111
